Workbook

Sheet Indholdfortegnelse
A2: Indholdsfortegnelse
A4: 1. | B4: Økonomiske nøgletal
A5: 2. | B5: Brændselspriser
A6: 3. | B6: CO2, SO2 og NOx priser
A7: 4. | B7: Elpriser for Danmark og nærmeste områder
A8: 5. | B8: Det årlige elforbrug
A9: 6. | B9: Det maksimale timeforbrug for fremskrivningsårene
A10: 7. | B10: Store varmepumper
A11: 8. | B11: Individuelle varmepumper og elbiler
A12: 9. | B12: Elkedler
A13: 10. | B13: Vindkapacitet på land og hav
A14: 11. | B14: Solceller
A15: 12. | B15: Kraftværker, Østdanmark
A16: 13. | B16: Kraftværker, Vestdanmark
A17: 14. | B17: Udlandsforbindelser
A18: 15. | B18: Gasdata, forbrug og produktion
A19: 16. | B19: Gasdata, forbindelser
A20: 17. | B20: Fjernvarmeforbrug

Sheet Økonomisk fremskrivning
A1: Økonomiske nøgletal | C1: Indholdsfortegnelse
C3: 2015 | D3: 2016-2020 | E3: 2021-2030 | F3: 2031-2035
B4: BNP, årlig vækst | C4: 1.546994773 | D4: 2.058188866 | E4: 1.261656658 | F4: 0.9991998637
B5: Inflation, forbrugerpris | C5: 1.04859367 | D5: 1.926303089 | E5: 1.938293497 | F5: 1.9768514
B6: Nominel rente, niveau i slutår | C6: 0.5 | D6: 3.85 | E6: 4.5 | F6: 4.5
B7: Kilde: Konvergensprogram 2015
D11: BNP, årlig vækst | E11: Inflation, forbrugerpris | F11: Effektiv rente, niveau i slutår
C12: 2015 | D12: 0.01546994773 | E12: 0.0104859367 | F12: 0.005
C13: 2016 | D13: 0.01984736364 | E13: 0.01530082426 | F13: 0.006
C14: 2017 | D14: 0.01837562644 | E14: 0.0153782429 | F14: 0.0141
C15: 2018 | D15: 0.02347156044 | E15: 0.02316108498 | F15: 0.0228
C16: 2019 | D16: 0.02386534032 | E16: 0.02026432217 | F16: 0.0314
C17: 2020 | D17: 0.01734955245 | E17: 0.02221068015 | F17: 0.0385
C18: 2021 | D18: 0.01619147412 | E18: 0.01932680374 | F18: 0.0404
C19: 2022 | D19: 0.01678225923 | E19: 0.0194936477 | F19: 0.042
C20: 2023 | D20: 0.01208418174 | E20: 0.01963198873 | F20: 0.0433
C21: 2024 | D21: 0.0102737212 | E21: 0.01944064089 | F21: 0.0443
C22: 2025 | D22: 0.01069080631 | E22: 0.01939821744 | F22: 0.045
C23: 2026 | D23: 0.00935901151 | E23: 0.01939762442 | F23: 0.045
C24: 2027 | D24: 0.01328413008 | E24: 0.01937347791 | F24: 0.045
C25: 2028 | D25: 0.009931199223 | E25: 0.01950093503 | F25: 0.045
C26: 2029 | D26: 0.01060707689 | E26: 0.01941257554 | F26: 0.045
C27: 2030 | D27: 0.01696180555 | E27: 0.01885343826 | F27: 0.045
C28: 2031 | D28: 0.009197491772 | E28: 0.01972930104 | F28: 0.045
C29: 2032 | D29: 0.01054791822 | E29: 0.01983768346 | F29: 0.045
C30: 2033 | D30: 0.00716858052 | E30: 0.01984564869 | F30: 0.045
C31: 2034 | D31: 0.007181731253 | E31: 0.01977080601 | F31: 0.045
C32: 2035 | D32: 0.01586427142 | E32: 0.01965913081 | F32: 0.045
C33: Kilde: Konvergensprogram 2015
A36: BVT-deflator
A38: 2015 | B38: 1
A39: 2016 | B39: 1.015300824
A40: 2017 | B40: 1.030914367
A41: 2018 | B41: 1.054791462
A42: 2019 | B42: 1.076166096
A43: 2020 | B43: 1.100068477
A44: 2021 | B44: 1.121329285
A45: 2022 | B45: 1.143188083
A46: 2023 | B46: 1.165631138
A47: 2024 | B47: 1.188291755
A48: 2025 | B48: 1.211342497
A49: 2026 | B49: 1.234839663
A50: 2027 | B50: 1.258762802
A51: 2028 | B51: 1.283309854
A52: 2029 | B52: 1.308222203
A53: 2030 | B53: 1.33288669
A54: 2031 | B54: 1.359183613
A55: 2032 | B55: 1.386146667
A56: 2033 | B56: 1.413655647
A57: 2034 | B57: 1.441604758
A58: 2035 | B58: 1.469945455
A59: Kilde: Konvergensprogram 2015
A65: Langsigtede valutakurser
B67: DKK/EUR | C67: =7.459 -> 7.459
B68: DKK/$ | C68: 6.25
D72: Omregningsfaktorer
D73: Fra | E73: Til | F73: Til | G73: Til
D74: GJ | E74: TJ | F74: PJ | G74: GWh
D75: 1 | E75: =1/1000 -> 0.001 | F75: =1/1000000 -> 1e-06 | G75: =1/3600 -> 0.0002777777778
D77: Fra | E77: Til
D78: GWh | E78: mio. M3
D79: 1 | E79: =1/12.1 -> 0.0826446281

Sheet Brændselspriser
A1: Brændselspriser | C1: Indholdsfortegnelse
A3: Fremskrivning
B5: Faste 2015 priser
C6: Kul | D6: Olie | E6: Fuelolie | F6: Gasolie | G6: Gas | H6: Gas, dec | I6: Halm | J6: Halm, dec | K6: Træflis | L6: Træpiller | M6: Træpiller, dec | O6: Dato og kilde for futurepriser på brændsler
B7: 2015 | C7: 15.74494547 | D7: 70.34493571 | E7: 53.74716896 | F7: 82.19156053 | G7: 41.06964603 | H7: 46.51140584 | I7: 42.6299224 | J7: 40.9247255 | K7: 49.80131121 | L7: 67.28108162 | M7: 71.90922669
B8: 2016 | C8: 16.86039665 | D8: 84.60106759 | E8: 68.80877229 | F8: 97.25316386 | G8: 44.39298365 | H8: 49.83474346 | I8: 43.15756969 | J8: 41.4312669 | K8: 50.4177216 | L8: 67.72944012 | M8: 72.38449872 | O8: Brændsel | P8: Dato | Q8: Kilde
B9: 2017 | C9: 18.31595978 | D9: 95.32143608 | E9: 80.13484159 | F9: 108.5792332 | G9: 47.85387848 | H9: 53.29563829 | I9: 43.68521698 | J9: 41.93780831 | K9: 51.03413199 | L9: 68.17779863 | M9: 72.85977076 | O9: Naturgas: | P9: 2015-03-18 | Q9: www.montel.no | R9: ICE Endex
B10: 2018 | C10: 20.01521999 | D10: 103.8766578 | E10: 89.17343338 | F10: 117.6178249 | G10: 51.72646422 | H10: 57.16822403 | I10: 44.21286428 | J10: 42.44434971 | K10: 51.65054238 | L10: 68.62615714 | M10: 73.33504279 | O10: Olie: | P10: 2015-03-18 | Q10: www.montel.no | R10: ICE Brent
B11: 2019 | C11: 21.93367861 | D11: 112.5353097 | E11: 98.32129908 | F11: 126.7656906 | G11: 56.06212205 | H11: 61.50388186 | I11: 44.74051157 | J11: 42.71334832 | K11: 52.26695277 | L11: 69.07451565 | M11: 73.81031482 | O11: Kul: | P11: 2015-03-18 | Q11: www.montel.no | R11: ICE
B12: 2020 | C12: 23.88339555 | D12: 121.037179 | E12: 107.303524 | F12: 135.7479156 | G12: 60.40358344 | H12: 65.84534326 | I12: 45.26815886 | J12: 42.95525727 | K12: 52.88336316 | L12: 69.52287416 | M12: 74.28558685 | O12: CO2: | P12: 2015-03-18 | Q12: https://www.theice.com/productguide/ProductSpec.shtml?specId=197#data
B13: 2021 | C13: 24.09657223 | D13: 122.4595924 | E13: 108.8063038 | F13: 137.2506954 | G13: 61.20346502 | H13: 66.64522483 | I13: 45.69518311 | J13: 43.17980556 | K13: 53.38222326 | L13: 69.791219 | M13: 74.55858812
B14: 2022 | C14: 24.28911209 | D14: 123.7688714 | E14: 110.189557 | F14: 138.6339486 | G14: 61.93718941 | H14: 67.37894922 | I14: 46.12220736 | J14: 43.40435384 | K14: 53.88108336 | L14: 70.05956384 | M14: 74.83158939
B15: 2023 | C15: 24.46216779 | D15: 124.9707348 | E15: 111.4593257 | F15: 139.9037173 | G15: 62.60817631 | H15: 68.04993612 | I15: 46.54923161 | J15: 43.62890212 | K15: 54.37994347 | L15: 70.32790868 | M15: 75.10459066
B16: 2024 | C16: 24.62417918 | D16: 126.1057001 | E16: 112.6584165 | F16: 141.1028081 | G16: 63.24084185 | H16: 68.68260166 | I16: 46.97625585 | J16: 43.8534504 | K16: 54.87880357 | L16: 70.59625352 | M16: 75.37759193
B17: 2025 | C17: 24.77215171 | D17: 127.160039 | E17: 113.7723256 | F17: 142.2167172 | G17: 63.82682033 | H17: 69.26858014 | I17: 47.4032801 | J17: 44.09607451 | K17: 55.37766367 | L17: 70.86459836 | M17: 75.6505932
B18: 2026 | C18: 24.90559655 | D18: 128.1318243 | E18: 114.7990167 | F18: 143.2434083 | G18: 64.3648901 | H18: 69.80664991 | I18: 47.84237598 | J18: 44.50453579 | K18: 55.89062614 | L18: 71.19238095 | M18: 75.98613651
B19: 2027 | C19: 25.02559162 | D19: 129.0265992 | E19: 115.7443464 | F19: 144.188738 | G19: 64.85833874 | H19: 70.30009855 | I19: 48.28147185 | J19: 44.91299707 | K19: 56.40358861 | L19: 71.52016354 | M19: 76.32167982
B20: 2028 | C20: 25.12889572 | D20: 129.8291011 | E20: 116.5921897 | F20: 145.0365813 | G20: 65.29792608 | H20: 70.7396859 | I20: 48.72056772 | J20: 45.32145834 | K20: 56.91655107 | L20: 71.84794614 | M20: 76.65722313
B21: 2029 | C21: 25.22128204 | D21: 130.5674526 | E21: 117.3722581 | F21: 145.8166496 | G21: 65.70054069 | H21: 71.1423005 | I21: 49.15966359 | J21: 45.72991962 | K21: 57.42951354 | L21: 72.17572873 | M21: 76.99276644
B22: 2030 | C22: 25.31491912 | D22: 131.3009951 | E22: 118.1472457 | F22: 146.5916373 | G22: 66.1018096 | H22: 71.54356941 | I22: 49.59875946 | J22: 46.1383809 | K22: 57.94247601 | L22: 72.50351133 | M22: 77.32830975
B23: 2031 | C23: 25.44966648 | D23: 132.505117 | E23: 119.4194005 | F23: 147.8637921 | G23: 66.62436646 | H23: 72.06612627 | I23: 50.01277638 | J23: 46.52351291 | K23: 58.42614063 | L23: 72.84373722 | M23: 77.67940064
B24: 2032 | C24: 25.56701418 | D24: 133.6034985 | E24: 120.5798405 | F24: 149.0242321 | G24: 67.09117902 | H24: 72.53293883 | I24: 50.4267933 | J24: 46.90864493 | K24: 58.90980526 | L24: 73.18396311 | M24: 78.03049153
B25: 2033 | C25: 25.66997303 | D25: 134.6113385 | E25: 121.6446235 | F25: 150.0890151 | G25: 67.51116255 | H25: 72.95292237 | I25: 50.84081022 | J25: 47.29377695 | K25: 59.39346989 | L25: 73.524189 | M25: 78.38158243
B26: 2034 | C26: 25.7611389 | D26: 135.5419795 | E26: 122.6278457 | F26: 151.0722373 | G26: 67.89205969 | H26: 73.3338195 | I26: 51.25482714 | J26: 47.67890897 | K26: 59.87713451 | L26: 73.8644149 | M26: 78.73267332
B27: 2035 | C27: 25.84195545 | D27: 136.4032048 | E27: 123.5377302 | F27: 151.9821218 | G27: 68.23826209 | H27: 73.68002191 | I27: 51.66884406 | J27: 48.06404099 | K27: 60.36079914 | L27: 74.20464079 | M27: 79.08376421
B28: DKK/GJ

Sheet CO2, NOx og SO2 priser
A1: CO2 pris | C1: Indholdsfortegnelse
A3: Fremskrivning
C5: Faste 2015 priser | H5: 2015-2035
B6: 2015 | C6: 51.16874 | G6: SO2 | H6: 11.5 | I6: DKK/kg
B7: 2016 | C7: 55.2222076 | G7: NOx | H7: 26.4 | I7: DKK/kg
B8: 2017 | C8: 65.89525534
B9: 2018 | C9: 81.18250167
B10: 2019 | C10: 101.2777453
B11: 2020 | C11: 125.5996003
B12: 2021 | C12: 136.0052494
B13: 2022 | C13: 145.9472677
B14: 2023 | C14: 155.4382679
B15: 2024 | C15: 164.5405621
B16: 2025 | C16: 173.246379
B17: 2026 | C17: 181.5613929
B18: 2027 | C18: 189.501721
B19: 2028 | C19: 197.0500146
B20: 2029 | C20: 204.2579103
B21: 2030 | C21: 211.2356914
B22: 2031 | C22: 220.4273227
B23: 2032 | C23: 229.1598541
B24: 2033 | C24: 237.4674002
B25: 2034 | C25: 245.3828572
B26: 2035 | C26: 252.9298326
B27: DKK/Ton

Sheet Elpriser
A1: Elpriser for Danmark og nærmeste områder | F1: Indholdsfortegnelse
A3: Fremskrivning
B4: Elpriserne er et resultat af modelkørsler fra SIVAEL og BID modellerne.
AH5: Udgangspunktet er nedenstående simuleringspriser fra SIVAEL og BID
B6: År | C6: DK1 | D6: DK2 | E6: DK | F6: NO (NSY) | G6: SE3 | H6: SE4 | I6: DE | J6: NL | K6: UK | AH6: DKw | AI6: Dke | AJ6: Norge, Sverige | AK6: Tyskland | AL6: Holland | AM6: UK
A7: Forward | B7: 2015 | C7: 220.86099 | D7: 232.04949 | E7: 225.4135413 | F7: 178.2949633 | G7: 212.4571833 | H7: 219.6924133 | I7: 240.6770667 | J7: 307.5594333 | K7: 464.2221529
A8: Forward | B8: 2016 | C8: 224.8791536 | D8: 239.7192676 | E8: 230.9223498 | F8: 192.6276187 | G8: 222.6017103 | H8: 230.2421651 | I8: 234.8705175 | J8: 284.1661438 | K8: 466.0021012
A9: Forward | B9: 2017 | C9: 217.9279746 | D9: 232.1092107 | E9: 223.7067671 | F9: 186.0925467 | G9: 214.7444318 | H9: 222.3415226 | I9: 224.3674134 | J9: 276.0276305 | K9: 444.8828493
A10: Interpolation | B10: 2018 | C10: 272.4641525 | D10: 282.0751452 | E10: 276.3806248 | F10: 250.7586806 | G10: 265.9784726 | H10: 271.1444184 | I10: 276.2556578 | J10: 334.3102092 | K10: 487.0837435
A11: Interpolation | B11: 2019 | C11: 327.0003304 | D11: 332.0410797 | E11: 329.0544825 | F11: 315.4248144 | G11: 317.2125134 | H11: 319.9473142 | I11: 328.1439021 | J11: 392.5927878 | K11: 529.2846376
A12: BID/SIVAEL priser | B12: 2020 | C12: 381.5365082 | D12: 382.0070142 | E12: 381.7283402 | F12: 380.0909482 | G12: 368.4465542 | H12: 368.7502101 | I12: 380.0321465 | J12: 450.8753664 | K12: 571.4855317
B13: 2021 | C13: 385.0674002 | D13: 386.2196391 | E13: 385.537105 | F13: 381.9148378 | G13: 370.6952487 | H13: 370.9306249 | I13: 384.5159776 | J13: 450.4826799 | K13: 565.3907157
B14: 2022 | C14: 399.3513641 | D14: 393.2033215 | E14: 396.8454996 | F14: 383.7387274 | G14: 372.9439433 | H14: 373.1110398 | I14: 388.9998088 | J14: 450.0899934 | K14: 559.2958996
B15: 2023 | C15: 403.26077 | D15: 397.2563388 | E15: 400.8148636 | F15: 385.562617 | G15: 375.1926379 | H15: 375.2914547 | I15: 393.4836399 | J15: 449.6973069 | K15: 553.2010836
B16: 2024 | C16: 407.3585286 | D16: 401.5813202 | E16: 405.0049816 | F16: 387.3865066 | G16: 377.4413324 | H16: 377.4718696 | I16: 397.9674711 | J16: 449.3046204 | K16: 547.1062676
B17: 2025 | C17: 410.8281778 | D17: 404.0320648 | E17: 408.0591073 | F17: 389.2103962 | G17: 379.690027 | H17: 379.6522845 | I17: 402.4513022 | J17: 448.9119339 | K17: 541.0114515
B18: 2026 | C18: 417.9228768 | D18: 411.2753471 | E18: 415.2143464 | F18: 391.0342858 | G18: 381.9387216 | H18: 381.8326993 | I18: 406.9351334 | J18: 448.5192474 | K18: 534.9166355
B19: 2027 | C19: 420.9998414 | D19: 415.359178 | E19: 418.7015579 | F19: 392.8581754 | G19: 384.1874161 | H19: 384.0131142 | I19: 411.4189646 | J19: 448.1265608 | K19: 528.8218195
B20: 2028 | C20: 424.3742014 | D20: 420.311611 | E20: 422.7189024 | F20: 394.682065 | G20: 386.4361107 | H20: 386.1935291 | I20: 415.9027957 | J20: 447.7338743 | K20: 522.7270034
B21: 2029 | C21: 427.0407732 | D21: 423.374656 | E21: 425.5470168 | F21: 396.5059546 | G21: 388.6848053 | H21: 388.373944 | I21: 420.3866269 | J21: 447.3411878 | K21: 516.6321874
B22: 2030 | C22: 430.6008061 | D22: 428.3383556 | E22: 429.6789726 | F22: 398.3298442 | G22: 390.9334998 | H22: 390.5543588 | I22: 424.870458 | J22: 446.9485013 | K22: 510.5373714
B23: 2031 | C23: 430.5001325 | D23: 428.2163063 | E23: 429.5695894 | F23: 399.241789 | G23: 392.0578471 | H23: 391.6445663 | I23: 427.1123736 | J23: 446.752158 | K23: 507.4899634
B24: 2032 | C24: 432.8457218 | D24: 430.3938808 | E24: 431.8467212 | F24: 400.1537338 | G24: 393.1821944 | H24: 392.7347737 | I24: 429.3542892 | J24: 446.5558148 | K24: 504.4425553
B25: 2033 | C25: 434.358311 | D25: 431.9722697 | E25: 433.3861205 | F25: 401.0656786 | G25: 394.3065417 | H25: 393.8249812 | I25: 431.5962048 | J25: 446.3594715 | K25: 501.3951473
B26: 2034 | C26: 435.6856965 | D26: 434.0333638 | E26: 435.0124549 | F26: 401.9776234 | G26: 395.430889 | H26: 394.9151886 | I26: 433.8381203 | J26: 446.1631283 | K26: 498.3477393
B27: 2035 | C27: 437.2455992 | D27: 436.4336129 | E27: 436.914756 | F27: 402.8895682 | G27: 396.5552362 | H27: 396.005396 | I27: 436.0800359 | J27: 445.966785 | K27: 495.3003313
B28: 2015 DKK/MWh
E29: Forward priser fra Nasdaq (hentet d. 18. marts 2015).
E30: Interpolerede priser mellem forward og simlueringspriserne
E31: Simulerede elpriser fra Energinet.dk's energimodeller

Sheet Elforbrug
A1: Det årlige elforbrug | D1: Indholdsfortegnelse
A3: Fremskrivning | AB3: Samlet forbrug | AD3: Klassisk forbrug
AB4: Vestdanmark | AC4: Østdanmark | AD4: Vestdanmark | AE4: Østdanmark
C5: Forbrug, ab værk | F5: Nettab | G5: Nettab | H5: Total an forbruger | M5: År | N5: Klassisk forbrug | P5: Femern og elektrificering af fjernbanen | R5: Individuelle varmepumper | T5: Elbiler | V5: Elkedler & store varmepumper | X5: Total | AA5: 2003 | AB5: 20647.7125 | AC5: 14171.9126 | AD5: 20647.7125 | AE5: 14171.9126
C6: øst | D6: vest | E6: Samlet | F6: øst | G6: vest | H6: Samlet | N6: vest | O6: øst | P6: vest | Q6: øst | R6: vest | S6: øst | T6: vest | U6: øst | V6: vest | W6: øst | X6: vest | Y6: øst | AA6: 2004 | AB6: 20852.9188 | AC6: 14256.2007 | AD6: 20852.9188 | AE6: 14256.2007
B7: 2015 | C7: 13643.04785 | D7: 20586.8174 | E7: 34229.86524 | F7: 762.1842192 | G7: 1330.125381 | H7: 32137.55564 | M7: 2015 | N7: 20035.43565 | O7: 13263.75659 | P7: 70.62 | Q7: 127.2 | R7: 290.5370217 | S7: 197.4583042 | T7: 5.943866988 | U7: 4.039643171 | V7: 184.2808587 | W7: 50.59330559 | X7: 20586.8174 | Y7: 13643.04785 | AA7: 2005 | AB7: 21008.1494 | AC7: 14445.7451 | AD7: 21008.1494 | AE7: 14445.7451
B8: 2016 | C8: 13732.48774 | D8: 20736.51633 | E8: 34469.00407 | F8: 765.956814 | G8: 1334.901401 | H8: 32368.14586 | M8: 2016 | N8: 20084.25227 | O8: 13313.67322 | P8: 79.30881516 | Q8: 127.2 | R8: 310.4663252 | S8: 211.2869874 | T8: 10.20282794 | U8: 6.943505955 | V8: 252.2860954 | W8: 73.38402924 | X8: 20736.51633 | Y8: 13732.48774 | AA8: 2006 | AB8: 21397.7423 | AC8: 14577.2842 | AD8: 21397.7423 | AE8: 14577.2842
B9: 2017 | C9: 13854.76333 | D9: 20959.21795 | E9: 34813.98128 | F9: 771.1192747 | G9: 1342.35159 | H9: 32700.51042 | M9: 2017 | N9: 20170.62462 | O9: 13385.88504 | P9: 87.99763032 | Q9: 127.2 | R9: 330.663332 | S9: 225.2888106 | T9: 17.51491845 | U9: 11.93333147 | V9: 352.4174429 | W9: 104.4561479 | X9: 20959.21795 | Y9: 13854.76333 | AA9: 2007 | AB9: 21595.5077 | AC9: 14515.8935 | AD9: 21595.5077 | AE9: 14515.8935
B10: 2018 | C10: 14011.91692 | D10: 21208.0123 | E10: 35219.92923 | F10: 776.3185309 | G10: 1350.834348 | H10: 33092.77635 | M10: 2018 | N10: 20267.09874 | O10: 13455.02021 | P10: 96.68644548 | Q10: 168.6456184 | R10: 351.2927243 | S10: 239.4404631 | T10: 30.07642511 | U10: 20.50003503 | V10: 462.8579694 | W10: 128.3105922 | X10: 21208.0123 | Y10: 14011.91692 | AA10: 2008 | AB10: 21622.1355 | AC10: 14476.7318 | AD10: 21622.1355 | AE10: 14476.7318
B11: 2019 | C11: 14172.89409 | D11: 21383.58663 | E11: 35556.48072 | F11: 782.2961683 | G11: 1360.395988 | H11: 33413.78856 | M11: 2019 | N11: 20369.82521 | O11: 13530.85336 | P11: 105.3752606 | Q11: 210.0912368 | R11: 373.1561584 | S11: 254.4918328 | T11: 51.6430232 | U11: 35.22044947 | V11: 483.5869777 | W11: 142.2372139 | X11: 21383.58663 | Y11: 14172.89409 | AA11: 2009 | AB11: 20555.0257 | AC11: 14050.9272 | AD11: 20555.0257 | AE11: 14050.9272
B12: 2020 | C12: 14340.81091 | D12: 21551.92065 | E12: 35892.73156 | F12: 788.5598219 | G12: 1371.316108 | H12: 33732.85563 | M12: 2020 | N12: 20465.98582 | O12: 13593.28067 | P12: 114.0640758 | Q12: 251.5368552 | R12: 406.8624849 | S12: 277.4561208 | T12: 88.69791883 | U12: 60.48672806 | V12: 476.3103472 | W12: 158.050538 | X12: 21551.92065 | Y12: 14340.81091 | AA12: 2010 | AB12: 21120.6205 | AC12: 14376.1069 | AD12: 21120.6205 | AE12: 14376.1069
B13: 2021 | C13: 14533.31002 | D13: 21840.78919 | E13: 36374.0992 | F13: 796.546156 | G13: 1385.528347 | H13: 34192.0247 | M13: 2021 | N13: 20620.09569 | O13: 13691.42739 | P13: 114.0640758 | Q13: 292.9824736 | R13: 445.5039792 | S13: 303.7206492 | T13: 113.1907718 | U13: 77.16737967 | V13: 547.9346652 | W13: 168.0121222 | X13: 21840.78919 | Y13: 14533.31002 | AA13: 2011 | AB13: 20707.4539 | AC13: 13888.4557 | AD13: 20707.4539 | AE13: 13888.4557
B14: 2022 | C14: 14793.83039 | D14: 22205.27014 | E14: 36999.10054 | F14: 806.1176618 | G14: 1402.436255 | H14: 34790.54662 | M14: 2022 | N14: 20810.27818 | O14: 13814.08583 | P14: 184.9422711 | Q14: 355.864243 | R14: 487.3923622 | S14: 332.1981571 | T14: 139.5693448 | U14: 95.12803798 | V14: 583.087982 | W14: 196.5541243 | X14: 22205.27014 | Y14: 14793.83039 | AA14: 2012 | AB14: 20442.0155 | AC14: 13698.1857 | AD14: 20442.0155 | AE14: 13698.1857
B15: 2023 | C15: 14973.66327 | D15: 22511.71797 | E15: 37485.38123 | F15: 813.2077477 | G15: 1416.072265 | H15: 35256.10122 | M15: 2023 | N15: 20944.49095 | O15: 13889.22385 | P15: 268.960794 | Q15: 404.367617 | R15: 533.2997036 | S15: 363.1309373 | T15: 167.88539 | U15: 114.3154189 | V15: 597.0811264 | W15: 202.6254391 | X15: 22511.71797 | Y15: 14973.66327 | AA15: 2013 | AB15: 20071.0888 | AC15: 13488.4092 | AD15: 20047.5061 | AE15: 13478.2161
B16: 2024 | C16: 15231.74537 | D16: 22866.14844 | E16: 38097.89381 | F16: 819.7944318 | G16: 1427.240503 | H16: 35850.85888 | M16: 2024 | N16: 21037.26638 | O16: 13952.4428 | P16: 380.5526904 | Q16: 523.2314124 | R16: 581.1082088 | S16: 395.7411085 | T16: 198.0159533 | U16: 134.8510513 | V16: 669.2052092 | W16: 225.4789999 | X16: 22866.14844 | Y16: 15231.74537 | AA16: 2014 | AB16: 20125.8151 | AC16: 13319.141 | AD16: 19868.71199 | AE16: 13143.11987
B17: 2025 | C17: 15487.07872 | D17: 23253.86503 | E17: 38740.94374 | F17: 825.6709387 | G17: 1436.984421 | H17: 36478.28838 | M17: 2025 | N17: 21104.47735 | O17: 14000.44461 | P17: 492.1445868 | Q17: 642.0952078 | R17: 630.8429258 | S17: 429.7254961 | T17: 230.013009 | U17: 156.6831463 | V17: 796.3871516 | W17: 258.1302586 | X17: 23253.86503 | Y17: 15487.07872 | AA17: 2015 | AB17: 20586.8174 | AC17: 13643.04785 | AD17: 20035.43565 | AE17: 13263.75659
B18: 2026 | C18: 15773.12411 | D18: 23678.22714 | E18: 39451.35125 | F18: 832.1062321 | G18: 1448.052203 | H18: 37171.19281 | M18: 2026 | N18: 21188.16374 | O18: 14055.89788 | P18: 607.3350645 | Q18: 760.9590031 | R18: 682.4356597 | S18: 464.8700817 | T18: 263.9128564 | U18: 179.7754695 | V18: 936.3798223 | W18: 311.621673 | X18: 23678.22714 | Y18: 15773.12411 | AA18: 2016 | AB18: 20736.51633 | AC18: 13732.48774 | AD18: 20084.25227 | AE18: 13313.67322
B19: 2027 | C19: 16014.74088 | D19: 24013.81842 | E19: 40028.55929 | F19: 837.918149 | G19: 1458.028173 | H19: 37732.61297 | M19: 2027 | N19: 21251.87063 | O19: 14098.09681 | P19: 651.6473468 | Q19: 858.3866474 | R19: 735.4371413 | S19: 500.9742956 | T19: 299.6943015 | U19: 204.149523 | V19: 1075.169001 | W19: 353.133596 | X19: 24013.81842 | Y19: 16014.74088 | AA19: 2017 | AB19: 20959.21795 | AC19: 13854.76333 | AD19: 20170.62462 | AE19: 13385.88504
B20: 2028 | C20: 16226.16643 | D20: 24145.61061 | E20: 40371.77704 | F20: 843.0270166 | G20: 1466.773135 | H20: 38061.97689 | M20: 2028 | N20: 21293.25781 | O20: 14125.48906 | P20: 682.8193016 | Q20: 928.7470688 | R20: 790.0594919 | S20: 538.1826335 | T20: 337.3577698 | U20: 229.8055967 | V20: 1042.11624 | W20: 403.9420637 | X20: 24145.61061 | Y20: 16226.16643 | AA20: 2018 | AB20: 21208.0123 | AC20: 14011.91692 | AD20: 20267.09874 | AE20: 13455.02021
B21: 2029 | C21: 16338.78835 | D21: 24296.20773 | E21: 40634.99608 | F21: 847.9399357 | G21: 1475.171404 | H21: 38311.88474 | M21: 2029 | N21: 21326.31838 | O21: 14147.35748 | P21: 686.4178828 | Q21: 928.7470688 | R21: 845.8267509 | S21: 576.1708744 | T21: 376.9034809 | U21: 256.7438402 | V21: 1060.741239 | W21: 429.769079 | X21: 24296.20773 | Y21: 16338.78835 | AA21: 2019 | AB21: 21383.58663 | AC21: 14172.89409 | AD21: 20369.82521 | AE21: 13530.85336
B22: 2030 | C22: 16539.48173 | D22: 24640.89747 | E22: 41180.3792 | F22: 854.3513472 | G22: 1486.177983 | H22: 38839.84987 | M22: 2030 | N22: 21397.85858 | O22: 14194.75224 | P22: 690.016464 | Q22: 928.7470688 | R22: 901.1017125 | S22: 613.823766 | T22: 418.3317348 | U22: 284.9644578 | V22: 1233.588977 | W22: 517.1941963 | X22: 24640.89747 | Y22: 16539.48173 | AA22: 2020 | AB22: 21551.92065 | AC22: 14340.81091 | AD22: 20465.98582 | AE22: 13593.28067
B23: 2031 | C23: 16664.37101 | D23: 24771.61377 | E23: 41435.98478 | F23: 859.2687445 | G23: 1494.551086 | H23: 39082.16495 | M23: 2031 | N23: 21415.31276 | O23: 14206.33086 | P23: 690.016464 | Q23: 928.7470688 | R23: 958.4434112 | S23: 652.8845035 | T23: 471.5247128 | U23: 321.1991177 | V23: 1236.316423 | W23: 555.2094559 | X23: 24771.61377 | Y23: 16664.37101 | AA23: 2021 | AB23: 21840.78919 | AC23: 14533.31002 | AD23: 20620.09569 | AE23: 13691.42739
B24: 2032 | C24: 16758.90178 | D24: 24964.85218 | E24: 41723.75396 | F24: 864.6704824 | G24: 1503.747897 | H24: 39355.33559 | M24: 2032 | N24: 21433.90018 | O24: 14218.66125 | P24: 690.016464 | Q24: 928.7470688 | R24: 1020.47909 | S24: 695.1427452 | T24: 531.4814448 | U24: 362.0411963 | V24: 1288.97501 | W24: 554.3095228 | X24: 24964.85218 | Y24: 16758.90178 | AA24: 2022 | AB24: 22205.27014 | AC24: 14793.83039 | AD24: 20810.27818 | AE24: 13814.08583
B25: 2033 | C25: 16838.39374 | D25: 25060.19079 | E25: 41898.58453 | F25: 869.0142282 | G25: 1511.086748 | H25: 39518.48355 | M25: 2033 | N25: 21415.73971 | O25: 14206.61409 | P25: 690.016464 | Q25: 928.7470688 | R25: 1083.238602 | S25: 737.8940568 | T25: 599.061976 | U25: 408.0765501 | V25: 1272.134038 | W25: 557.0619693 | X25: 25060.19079 | Y25: 16838.39374 | AA25: 2023 | AB25: 22511.71797 | AC25: 14973.66327 | AD25: 20944.49095 | AE25: 13889.22385
B26: 2034 | C26: 16938.17694 | D26: 25213.58794 | E26: 42151.76488 | F26: 872.4902507 | G26: 1516.939714 | H26: 39762.33492 | M26: 2034 | N26: 21389.60996 | O26: 14189.28033 | P26: 690.016464 | Q26: 928.7470688 | R26: 1122.661393 | S26: 764.7485676 | T26: 675.2357105 | U26: 459.96553 | V26: 1336.064415 | W26: 595.4354452 | X26: 25213.58794 | Y26: 16938.17694 | AA26: 2024 | AB26: 22866.14844 | AC26: 15231.74537 | AD26: 21037.26638 | AE26: 13952.4428
B27: 2035 | C27: 17063.98708 | D27: 25408.61279 | E27: 42472.59987 | F27: 878.675965 | G27: 1527.499572 | H27: 40066.42433 | M27: 2035 | N27: 21427.41691 | O27: 14214.36043 | P27: 690.016464 | Q27: 928.7470688 | R27: 1160.409798 | S27: 790.4624997 | T27: 761.0953175 | U27: 518.4524539 | V27: 1369.674303 | W27: 611.9646258 | X27: 25408.61279 | Y27: 17063.98708 | AA27: 2025 | AB27: 23253.86503 | AC27: 15487.07872 | AD27: 21104.47735 | AE27: 14000.44461
B28: GWh/år | M28: GWh/år | N28: ab værk | AA28: 2026 | AB28: 23678.22714 | AC28: 15773.12411 | AD28: 21188.16374 | AE28: 14055.89788
AA29: 2027 | AB29: 24013.81842 | AC29: 16014.74088 | AD29: 21251.87063 | AE29: 14098.09681
AA30: 2028 | AB30: 24145.61061 | AC30: 16226.16643 | AD30: 21293.25781 | AE30: 14125.48906
AA31: 2029 | AB31: 24296.20773 | AC31: 16338.78835 | AD31: 21326.31838 | AE31: 14147.35748
AA32: 2030 | AB32: 24640.89747 | AC32: 16539.48173 | AD32: 21397.85858 | AE32: 14194.75224
AA33: 2031 | AB33: 24771.61377 | AC33: 16664.37101 | AD33: 21415.31276 | AE33: 14206.33086
AA34: 2032 | AB34: 24964.85218 | AC34: 16758.90178 | AD34: 21433.90018 | AE34: 14218.66125
AA35: 2033 | AB35: 25060.19079 | AC35: 16838.39374 | AD35: 21415.73971 | AE35: 14206.61409
AA36: 2034 | AB36: 25213.58794 | AC36: 16938.17694 | AD36: 21389.60996 | AE36: 14189.28033
AA37: 2035 | AB37: 25408.61279 | AC37: 17063.98708 | AD37: 21427.41691 | AE37: 14214.36043
C86: Faktisk inkl. solceller | D86: AF2013
B87: 2013 | C87: 33515 | D87: 34692.29289
C89: AF2014 | D89: AF2013
B90: 2014 | C90: =#REF! ->  | D90: 34887.65825
B91: 2015 | C91: =E7 -> 34229.86524 | D91: 34996.57256
B92: 2016 | C92: 34469.00407 | D92: 35086.6789
B93: 2017 | C93: 34813.98128 | D93: 35176.98537
B94: 2018 | C94: 35219.92923 | D94: 35301.80764
B95: 2019 | C95: 35556.48072 | D95: 35434.20462
B96: 2020 | C96: 35892.73156 | D96: 35577.62911
B97: 2021 | C97: 36374.0992 | D97: 35736.56971
B98: 2022 | C98: 36999.10054 | D98: 35895.41132
B99: 2023 | C99: 37485.38123 | D99: 36048.87906
B100: 2024 | C100: 38097.89381 | D100: 36200.86974
B101: 2025 | C101: 38740.94374 | D101: 36355.92151
B102: 2026 | C102: 39451.35125 | D102: 36517.78882
B103: 2027 | C103: 40028.55929 | D103: 36685.38118
B104: 2028 | C104: 40371.77704 | D104: 36855.94998
B105: 2029 | C105: 40634.99608 | D105: 37047.06939
B106: 2030 | C106: 41180.3792 | D106: 37252.1226
B107: 2031 | C107: 41435.98478 | D107: 37500.56985
B108: 2032 | C108: 41723.75396 | D108: 37782.23349
B109: 2033 | C109: 41898.58453 | D109: 38124.54564
B110: 2034 | C110: 42151.76488 | D110: 38536.44551
B111: 2035 | C111: 42472.59987 | D111: 39066.14381

Sheet Effektforbrug
A1: Det maksimale timeforbrug for fremskrivningsårene | G1: Indholdsfortegnelse
A3: Fremskrivning
C4: Med Femern, Elektrificering af fjernbanen, VP og Elbiler | K4: Uden Femern, Elektrificering af fjernbanen, VP og Elbiler
D6: Østdanmark | F6: Vestdanmark | H6: Danmark | L6: Østdanmark | N6: Vestdanmark | P6: Danmark
D7: 2-års-vinter | E7: 10-års-vinter | F7: 2-års-vinter | G7: 10-års-vinter | H7: 2-års-vinter | I7: 10-års-vinter | L7: 2-års-vinter | M7: 10-års-vinter | N7: 2-års-vinter | O7: 10-års-vinter | P7: 2-års-vinter | Q7: 10-års-vinter
C8: 2015 | D8: 2545.941555 | E8: 2639.232569 | F8: 3621.50808 | G8: 3762.014867 | H8: 6167.449635 | I8: 6401.247437 | K8: 2015 | L8: 2442.114028 | M8: 2533.760308 | N8: 3533.779464 | O8: 3672.143372 | P8: 5975.893492 | Q8: 6205.903679
C9: 2016 | D9: 2557.846855 | E9: 2651.584645 | F9: 3637.892299 | G9: 3778.88163 | H9: 6195.739154 | I9: 6430.466274 | K9: 2016 | L9: 2449.29231 | M9: 2541.207971 | N9: 3536.955799 | O9: 3675.444075 | P9: 5986.248109 | Q9: 6216.652046
C10: 2017 | D10: 2573.997469 | E10: 2668.341349 | F10: 3661.088427 | G10: 3802.827018 | H10: 6235.085895 | I10: 6471.168367 | K10: 2017 | L10: 2458.50994 | M10: 2550.771516 | N10: 3545.573641 | O10: 3684.399345 | P10: 6004.083581 | Q10: 6235.170862
C11: 2018 | D11: 2609.32256 | E11: 2704.258447 | F11: 3686.375876 | G11: 3828.945613 | H11: 6295.698437 | I11: 6533.20406 | K11: 2018 | L11: 2471.844614 | M11: 2564.606606 | N11: 3560.821385 | O11: 3700.24411 | P11: 6032.665999 | Q11: 6264.850716
C12: 2019 | D12: 2646.334733 | E12: 2741.925936 | F12: 3713.382364 | G12: 3856.850556 | H12: 6359.717097 | I12: 6598.776492 | K12: 2019 | L12: 2484.611151 | M12: 2577.852239 | N12: 3577.852445 | O12: 3717.942014 | P12: 6062.463596 | Q12: 6295.794253
C13: 2020 | D13: 2682.819432 | E13: 2779.046158 | F13: 3742.003991 | G13: 3886.433877 | H13: 6424.823424 | I13: 6665.480035 | K13: 2020 | L13: 2498.614539 | M13: 2592.381138 | N13: 3595.987263 | O13: 3736.786895 | P13: 6094.601802 | Q13: 6329.168033
C14: 2021 | D14: 2726.113164 | E14: 2823.230938 | F14: 3777.112317 | G14: 3922.916857 | H14: 6503.225481 | I14: 6746.147795 | K14: 2021 | L14: 2510.1424 | M14: 2604.34161 | N14: 3612.962977 | O14: 3754.427288 | P14: 6123.105378 | Q14: 6358.768898
C15: 2022 | D15: 2784.512376 | E15: 2882.708613 | F15: 3852.365788 | G15: 3999.820024 | H15: 6636.878164 | I15: 6882.528637 | K15: 2022 | L15: 2528.266226 | M15: 2623.145576 | N15: 3640.168765 | O15: 3782.698309 | P15: 6168.434991 | Q15: 6405.843885
C16: 2023 | D16: 2827.864204 | E16: 2926.828737 | F16: 3924.673978 | G16: 4073.422166 | H16: 6752.538183 | I16: 7000.250902 | K16: 2023 | L16: 2550.916398 | M16: 2646.645751 | N16: 3673.742632 | O16: 3817.586749 | P16: 6224.65903 | Q16: 6464.2325
C17: 2024 | D17: 2902.575918 | E17: 3002.240108 | F17: 4002.967484 | G17: 4152.739478 | H17: 6905.543402 | I17: 7154.979586 | K17: 2024 | L17: 2564.791425 | M17: 2661.041472 | N17: 3697.435885 | O17: 3842.207703 | P17: 6262.227309 | Q17: 6503.249175
C18: 2025 | D18: 2974.791242 | E18: 3075.061406 | F18: 4077.170389 | G18: 4227.806023 | H18: 7051.961631 | I18: 7302.867429 | K18: 2025 | L18: 2576.465469 | M18: 2673.153614 | N18: 3713.813995 | O18: 3859.227092 | P18: 6290.279464 | Q18: 6532.380706
C19: 2026 | D19: 3048.654979 | E19: 3149.592978 | F19: 4156.375343 | G19: 4308.004629 | H19: 7205.030322 | I19: 7457.597607 | K19: 2026 | L19: 2585.329508 | M19: 2682.350298 | N19: 3725.679085 | O19: 3871.556756 | P19: 6311.008593 | Q19: 6553.907053
C20: 2027 | D20: 3110.196146 | E20: 3211.719 | F20: 4199.264299 | G20: 4351.762126 | H20: 7309.460446 | I20: 7563.481126 | K20: 2027 | L20: 2595.569539 | M20: 2692.974611 | N20: 3740.452661 | O20: 3886.908786 | P20: 6336.022201 | Q20: 6579.883397
C21: 2028 | D21: 3156.498619 | E21: 3258.513592 | F21: 4232.441907 | G21: 4385.668452 | H21: 7388.940527 | I21: 7644.182044 | K21: 2028 | L21: 2603.362016 | M21: 2701.059519 | N21: 3751.699158 | O21: 3898.595635 | P21: 6355.061174 | Q21: 6599.655154
C22: 2029 | D22: 3168.795389 | E22: 3271.271829 | F22: 4251.550009 | G22: 4405.458883 | H22: 7420.345399 | I22: 7676.730712 | K22: 2029 | L22: 2608.420284 | M22: 2706.30761 | N22: 3759.005444 | O22: 3906.187997 | P22: 6367.425728 | Q22: 6612.495608
C23: 2030 | D23: 3185.803142 | E23: 3288.917839 | F23: 4277.44729 | G23: 4432.304321 | H23: 7463.250432 | I23: 7721.22216 | K23: 2030 | L23: 2612.458518 | M23: 2710.497389 | N23: 3764.841792 | O23: 3912.252865 | P23: 6377.300309 | Q23: 6622.750254
C24: 2031 | D24: 3196.827011 | E24: 3300.355405 | F24: 4292.998986 | G24: 4448.464938 | H24: 7489.825997 | I24: 7748.820343 | K24: 2031 | L24: 2621.210459 | M24: 2719.577768 | N24: 3777.471143 | O24: 3925.376713 | P24: 6398.681602 | Q24: 6644.954482
C25: 2032 | D25: 3208.792855 | E25: 3312.770297 | F25: 4309.877901 | G25: 4466.004741 | H25: 7518.670756 | I25: 7778.775038 | K25: 2032 | L25: 2623.348573 | M25: 2721.796121 | N25: 3780.552416 | O25: 3928.578633 | P25: 6403.900989 | Q25: 6650.374753
C26: 2033 | D26: 3216.587929 | E26: 3320.8579 | F26: 4320.733776 | G26: 4477.285674 | H26: 7537.321705 | I26: 7798.143574 | K26: 2033 | L26: 2625.625508 | M26: 2724.158503 | N26: 3783.833746 | O26: 3931.988442 | P26: 6409.459254 | Q26: 6656.146945
C27: 2034 | D27: 3220.741497 | E27: 3325.167341 | F27: 4326.442295 | G27: 4483.217708 | H27: 7547.183792 | I27: 7808.385049 | K27: 2034 | L27: 2623.400874 | M27: 2721.850384 | N27: 3780.627787 | O27: 3928.656955 | P27: 6404.028662 | Q27: 6650.50734
C28: 2035 | D28: 3232.821206 | E28: 3337.700371 | F28: 4343.569768 | G28: 4501.015802 | H28: 7576.390975 | I28: 7838.716172 | K28: 2035 | L28: 2620.200013 | M28: 2718.529403 | N28: 3776.014971 | O28: 3923.863526 | P28: 6396.214984 | Q28: 6642.392929
C29: MWh/h | K29: MWh/h
A32: Historiske værdier
C34: Østdanmark | H34: Vestdanmark
B35: År | C35: Dato | D35: Tid | E35: Årsforbrug | F35: Maks. effekt | G35: Benyttelsestid | H35: Dato | I35: Tid | J35: Årsforbrug | K35: Maks. effekt | L35: Benyttelsestid
E36: GWh | F36: MWh/h | G36: Timer | J36: GWh | K36: MWh/h | L36: Timer
B37: 2000 | C37: 24.01 | D37: 17-18 | E37: 14216.703 | F37: 2660 | G37: 5344.625188 | H37: 24.01 | I37: 8-9 | J37: 20603.6541 | K37: 3633.3 | L37: 5670.782512
B38: 2001 | C38: 05.02 | D38: 17-18 | E38: 14557.4414 | F38: 2659.7 | G38: 5473.339625 | H38: 05.02 | I38: 10-11 | J38: 20615.0316 | K38: 3684.7 | L38: 5594.765273
B39: 2002 | C39: 03.01 | D39: 17-18 | E39: 14329.6527 | F39: 2682.7 | G39: 5341.50397 | H39: 10.12 | I39: 17-18 | J39: 20528.6306 | K39: 3655.8 | L39: 5615.359319
B40: 2003 | C40: 07.01 | D40: 17-18 | E40: 14171.9126 | F40: 2665.1 | G40: 5317.59131 | H40: 09.01 | I40: 17-18 | J40: 20647.7125 | K40: 3745 | L40: 5513.407877
B41: 2004 | C41: 06.01 | D41: 17-18 | E41: 14256.2007 | F41: 2628.4 | G41: 5423.908347 | H41: 27.01 | I41: 8-9 | J41: 20852.9188 | K41: 3618 | L41: 5763.659149
B42: 2005 | C42: 25.01 | D42: 17-18 | E42: 14445.7451 | F42: 2618.9 | G42: 5515.959029 | H42: 29.11 | I42: 17-18 | J42: 21008.1494 | K42: 3697.6 | L42: 5681.563555
B43: 2006 | C43: 24.01 | D43: 17-18 | E43: 14577.2842 | F43: 2687.6 | G43: 5423.903929 | H43: 04.01 | I43: 17-18 | J43: 21397.7423 | K43: 3754.3 | L43: 5699.529153
B44: 2007 | C44: 25.01 | D44: 17-18 | E44: 14515.8935 | F44: 2669.4 | G44: 5437.886229 | H44: 24.01 | I44: 17-18 | J44: 21595.5077 | K44: 3766.6 | L44: 5733.422105
B45: 2008 | C45: 03.01 | D45: 17-18 | E45: 14476.7318 | F45: 2660 | G45: 5442.380376 | H45: 03.01 | I45: 17-18 | J45: 21622.1355 | K45: 3747.9 | L45: 5769.133515
B46: 2009 | C46: 05.01 | D46: 17-18 | E46: 14050.9272 | F46: 2614.2 | G46: 5374.847831 | H46: 06.01 | I46: 17-18 | J46: 20555.0257 | K46: 3677.4 | L46: 5589.553951
B47: 2010 | C47: 31.12 | D47: 17-18 | E47: 14376.1069 | F47: 2615.4 | G47: 5496.714422 | H47: 01.12 | I47: 17-18 | J47: 21120.6205 | K47: 3743.1 | L47: 5642.547755
B48: 2011 | C48: 05.01 | D48: 17-18 | E48: 13888.4557 | F48: 2555.7 | G48: 5434.305944 | H48: 05.01 | I48: 17-18 | J48: 20707.4539 | K48: 3665.3 | L48: 5649.593185
B49: 2012 | C49: 06.02 | D49: 17-18 | E49: 13698.1857 | F49: 2558.7 | G49: 5353.5724 | H49: 07.02 | I49: 8-9 | J49: 20442.0155 | K49: 3676.5 | L49: 5560.183735
B50: 2013 | C50: 16.01 | D50: 17-18 | E50: 13465.046 | F50: 2521.2 | G50: 5349.995716 | H50: 16.01 | I50: 17-18 | J50: 20105.782 | K50: 3562.8 | L50: 5636.204768
B51: 2014 | C51: 29.01 | D51: 17-18 | E51: 13319.141 | F51: 2500.1 | G51: 5323.858526 | H51: 30.01 | I51: 17-18 | J51: 20125.8151 | K51: 3540.9 | L51: 5684.256492
B52: Kilde: Markedsdata, bruttoforbrug (dvs. inklusiv nettab for transmissionsnettet)

Sheet Individ. VP & Elbiler
A1: Individuelle varmepumper og elbiler, elforbrug an forbruger | E1: Indholdsfortegnelse
A3: Fremskrivning
B5: År | C5: 2014 | D5: 2015 | E5: 2016 | F5: 2017 | G5: 2018 | H5: 2019 | I5: 2020 | J5: 2021 | K5: 2022 | L5: 2023 | M5: 2024
B6: VP, individuel GWh | C6: 428.1922447 | D6: 457.8113458 | E6: 489.4827907 | F6: 521.5677652 | G6: 554.1981866 | H6: 588.830708 | I6: 641.9963703 | J6: 702.8877734 | K6: 768.9013684 | L6: 840.9872939 | M6: 916.4324523
B9: År | C9: 2025 | D9: 2026 | E9: 2027 | F9: 2028 | G9: 2029 | H9: 2030 | I9: 2031 | J9: 2032 | K9: 2033 | L9: 2034 | M9: 2035
B10: VP, individuel GWh | C10: 994.9742393 | D10: 1076.347017 | E10: 1159.941691 | F10: 1246.092822 | G10: 1334.049719 | H10: 1421.230158 | I10: 1511.670283 | J10: 1609.513818 | K10: 1708.498994 | L10: 1770.677168 | M10: 1830.214477
B14: År | C14: 2014 | D14: 2015 | E14: 2016 | F14: 2017 | G14: 2018 | H14: 2019 | I14: 2020 | J14: 2021 | K14: 2022 | L14: 2023 | M14: 2024
B15: Elbiler, GWh | C15: 4.932 | D15: 9.366 | E15: 0 | F15: 0 | G15: 0 | H15: 0 | I15: 139.9582022 | J15: 178.5851828 | K15: 220.1820721 | L15: 264.7469684 | M15: 312.2796115
B18: År | C18: 2025 | D18: 2026 | E18: 2027 | F18: 2028 | G18: 2029 | H18: 2030 | I18: 2031 | J18: 2032 | K18: 2033 | L18: 2034 | M18: 2035
B19: Elbiler, GWh | C19: 362.779718 | D19: 416.2470289 | E19: 472.6820218 | F19: 532.0853681 | G19: 594.4574138 | H19: 659.7986322 | I19: 743.6953373 | J19: 838.2599291 | K19: 944.848883 | L19: 1064.991157 | M19: 1200.410124
A29: Transformeret tabel
B31: År | C31: VP, individuel | D31: Elbiler
C32: GWh | D32: GWh
B33: 2014 | C33: 428.1922447 | D33: 4.932
B34: 2015 | C34: 457.8113458 | D34: 9.366
B35: 2016 | C35: 489.4827907 | D35: 0
B36: 2017 | C36: 521.5677652 | D36: 0
B37: 2018 | C37: 554.1981866 | D37: 0
B38: 2019 | C38: 588.830708 | D38: 0
B39: 2020 | C39: 641.9963703 | D39: 139.9582022
B40: 2021 | C40: 702.8877734 | D40: 178.5851828
B41: 2022 | C41: 768.9013684 | D41: 220.1820721
B42: 2023 | C42: 840.9872939 | D42: 264.7469684
B43: 2024 | C43: 916.4324523 | D43: 312.2796115
B44: 2025 | C44: 994.9742393 | D44: 362.779718
B45: 2026 | C45: 1076.347017 | D45: 416.2470289
B46: 2027 | C46: 1159.941691 | D46: 472.6820218
B47: 2028 | C47: 1246.092822 | D47: 532.0853681
B48: 2029 | C48: 1334.049719 | D48: 594.4574138
B49: 2030 | C49: 1421.230158 | D49: 659.7986322
B50: 2031 | C50: 1511.670283 | D50: 743.6953373
B51: 2032 | C51: 1609.513818 | D51: 838.2599291
B52: 2033 | C52: 1708.498994 | D52: 944.848883
B53: 2034 | C53: 1770.677168 | D53: 1064.991157
B54: 2035 | C54: 1830.214477 | D54: 1200.410124
A65: Forudsætninger
A67: Gennemsnitlig MWh per elbil, årligt
A68: 3 | B68: MWh
B71: Manglende gennembrud
C72: 2014 | D72: 2015 | E72: 2016 | F72: 2017 | G72: 2018 | H72: 2019 | I72: 2020 | J72: 2021 | K72: 2022 | L72: 2023 | M72: 2024 | N72: 2025 | O72: 2026 | P72: 2027 | Q72: 2028 | R72: 2029 | S72: 2030 | T72: 2031 | U72: 2032 | V72: 2033 | W72: 2034 | X72: 2035
B73: Biler | C73: 1644 | D73: 3122 | E73: 6180.392928 | F73: 9238.785857 | G73: 12297.17879 | H73: 15355.57171 | I73: 18413.96464 | J73: 23366.14164 | K73: 29308.55439 | L73: 36240.8716 | M73: 44162.97877 | N73: 53074.76227 | O73: 63471.18385 | P73: 75352.23498 | Q73: 88717.9879 | R73: 103370.4685 | S73: 119210.7639 | T73: 140164.2907 | U73: 164800.7928 | V73: 193767.6221 | W73: 227825.9147 | X73: 267870.5909
B74: GWh | C74: 4.932 | D74: 9.366 | E74: 18.54117879 | F74: 27.71635757 | G74: 36.89153636 | H74: 46.06671514 | I74: 55.24189393 | J74: 70.09842492 | K74: 87.92566317 | L74: 108.7226148 | M74: 132.4889363 | N74: 159.2242868 | O74: 190.4135515 | P74: 226.0567049 | Q74: 266.1539637 | R74: 310.1114054 | S74: 357.6322916 | T74: 420.4928722 | U74: 494.4023785 | V74: 581.3028663 | W74: 683.4777442 | X74: 803.6117726
Q75: 0.195882584 | R75: 0.187188113 | S75: 0.1773769939 | T75: 0.1651579449 | U75: 0.1532381116
B76: Moderat udvikling
C77: 2014 | D77: 2015 | E77: 2016 | F77: 2017 | G77: 2018 | H77: 2019 | I77: 2020 | J77: 2021 | K77: 2022 | L77: 2023 | M77: 2024 | N77: 2025 | O77: 2026 | P77: 2027 | Q77: 2028 | R77: 2029 | S77: 2030 | T77: 2031 | U77: 2032 | V77: 2033 | W77: 2034 | X77: 2035
B78: Biler | C78: 1644 | D78: 3122 | E78: 5361.94351 | F78: 9208.980846 | G78: 15816.15473 | H78: 27163.78226 | I78: 46652.73408 | J78: 59528.39428 | K78: 73394.02403 | L78: 88248.98948 | M78: 104093.2038 | N78: 120926.5727 | O78: 138749.0096 | P78: 157560.6739 | Q78: 177361.7894 | R78: 198152.4713 | S78: 219932.8774 | T78: 247898.4458 | U78: 279419.9764 | V78: 314949.6277 | W78: 354997.0523 | X78: 400136.7079
B79: GWh | C79: 4.932 | D79: 9.366 | E79: 16.08583053 | F79: 27.62694254 | G79: 47.4484642 | H79: 81.49134679 | I79: 139.9582022 | J79: 178.5851828 | K79: 220.1820721 | L79: 264.7469684 | M79: 312.2796115 | N79: 362.779718 | O79: 416.2470289 | P79: 472.6820218 | Q79: 532.0853681 | R79: 594.4574138 | S79: 659.7986322 | T79: 743.6953373 | U79: 838.2599291 | V79: 944.848883 | W79: 1064.991157 | X79: 1200.410124
Q80: 0.1473823048 | R80: 0.1355805302 | S80: 0.1256729547 | T80: 0.1172218771 | U80: 0.1099174086
B82: Elbiler til alle
C83: 2014 | D83: 2015 | E83: 2016 | F83: 2017 | G83: 2018 | H83: 2019 | I83: 2020 | J83: 2021 | K83: 2022 | L83: 2023 | M83: 2024 | N83: 2025 | O83: 2026 | P83: 2027 | Q83: 2028 | R83: 2029 | S83: 2030 | T83: 2031 | U83: 2032 | V83: 2033 | W83: 2034 | X83: 2035
B84: Biler | C84: 1644 | D84: 3122 | E84: 18180.75047 | F84: 33239.50095 | G84: 48298.25142 | H84: 63357.0019 | I84: 78415.75237 | J84: 103176.6374 | K84: 130907.8969 | L84: 160617.8278 | M84: 192306.2564 | N84: 225972.9941 | O84: 261122.8004 | P84: 297756.0414 | Q84: 335873.1886 | R84: 375276.4809 | S84: 415867.2379 | T84: 469874.4924 | U84: 530895.4843 | V84: 599841.0635 | W84: 677740.369 | X84: 765756.1906
B85: GWh | C85: 4.932 | D85: 9.366 | E85: 54.54225142 | F85: 99.71850285 | G85: 144.8947543 | H85: 190.0710057 | I85: 235.2472571 | J85: 309.5299121 | K85: 392.7236906 | L85: 481.8534833 | M85: 576.9187693 | N85: 677.9189823 | O85: 783.3684012 | P85: 893.2681242 | Q85: 1007.619566 | R85: 1125.829443 | S85: 1247.601714 | T85: 1409.623477 | U85: 1592.686453 | V85: 1799.52319 | W85: 2033.221107 | X85: 2297.268572
Q86: 0.1555487036 | R86: 0.1402912382 | S86: 0.1280146896 | T86: 0.1173159801 | U86: 0.1081622723

Sheet Store varmepumper
A1: Store varmepumper | C1: Indholdsfortegnelse
A3: Fremskrivning
A4: Elkapacitet er angivet primo året
C5: Elforbrug | D5: benyttelsestid | E5: Østdanmark | F5: =H31*1000/(D31+F31) -> 2850.245399
E6: Vestdanmark | F6: =I31*1000/(E31+G31) -> 3479.553663
C7: År | D7: Store varmepumper, decentrale områder | F7: Store varmepumper, Centrale områder | H7: Store varmepumper | J7: Store varmepumper, decentrale område | K7: Store varmepumper, centrale område
D8: Østdanmark Mw el | E8: Vestdanmark MW el | F8: Østdanmark MW el | G8: Vestdanmark MW el | H8: Østdanmark GWh* | I8: Vestdanmark GWh* | J8: MW el | K8: MW el
C9: 2013 | D9: 0.5 | E9: 3.5 | F9: 0 | G9: 0 | H9: 1.425122699 | I9: 9.975858896 | J9: 4 | K9: 0
C10: 2014 | D10: 0.5 | E10: 3.5 | F10: 0 | G10: 0 | H10: 1.425122699 | I10: 9.975858896 | J10: 4 | K10: 0
C11: 2015 | D11: 0.5 | E11: 3.5 | F11: 0 | G11: 0 | H11: 1.7459182 | I11: 48.3257543 | J11: 4 | K11: 0
C12: 2016 | D12: 0.5 | E12: 4.97281746 | F12: 0 | G12: 0 | H12: 1.645864118 | I12: 53.6805112 | J12: 5.47281746 | K12: 0
C13: 2017 | D13: 0.5 | E13: 5.544246032 | F13: 0 | G13: 0 | H13: 8.03678588 | I13: 85.498556 | J13: 6.044246032 | K13: 0
C14: 2018 | D14: 8.666666667 | E14: 28.69616402 | F14: 0 | G14: 0 | H14: 44.8712662 | I14: 227.325869 | J14: 37.36283069 | K14: 0
C15: 2019 | D15: 16.83333333 | E15: 51.84808201 | F15: 0 | G15: 0 | H15: 66.83723 | I15: 270.4841811 | J15: 68.68141534 | K15: 0
C16: 2020 | D16: 25 | E16: 75 | F16: 0 | G16: 0 | H16: 84.15142118 | I16: 270.1393261 | J16: 100 | K16: 0
C17: 2021 | D17: 30 | E17: 83.33333333 | F17: 0 | G17: 0 | H17: 93.94662321 | I17: 338.1489235 | J17: 113.3333333 | K17: 0
C18: 2022 | D18: 35 | E18: 91.66666667 | F18: 0 | G18: 0 | H18: 110.3563495 | I18: 342.6660687 | J18: 126.6666667 | K18: 0
C19: 2023 | D19: 40 | E19: 100 | F19: 0 | G19: 10 | H19: 121.556852 | I19: 370.489943 | J19: 140 | K19: 10
C20: 2024 | D20: 45 | E20: 108.3333333 | F20: 5 | G20: 30 | H20: 154.4510161 | I20: 468.4347689 | J20: 153.3333333 | K20: 35
C21: 2025 | D21: 50 | E21: 116.6666667 | F21: 10 | G21: 50 | H21: 177.3974891 | I21: 566.127384 | J21: 166.6666667 | K21: 60
C22: 2026 | D22: 55 | E22: 125 | F22: 20 | G22: 70 | H22: 213.5603251 | I22: 658.429341 | J22: 180 | K22: 90
C23: 2027 | D23: 60 | E23: 133.3333333 | F23: 35 | G23: 85 | H23: 252.3896067 | I23: 787.241853 | J23: 193.3333333 | K23: 120
C24: 2028 | D24: 65 | E24: 141.6666667 | F24: 50 | G24: 85 | H24: 312.2129844 | I24: 788.390441 | J24: 206.6666667 | K24: 135
C25: 2029 | D25: 70 | E25: 150 | F25: 65 | G25: 85 | H25: 339.2973436 | I25: 813.123796 | J25: 220 | K25: 150
C26: 2030 | D26: 75 | E26: 158.3333333 | F26: 65 | G26: 85 | H26: 382.4295403 | I26: 868.653441 | J26: 233.3333333 | K26: 150
C27: 2031 | D27: 80 | E27: 166.6666667 | F27: 65 | G27: 85 | H27: 422.7811279 | I27: 883.295394 | J27: 246.6666667 | K27: 150
C28: 2032 | D28: 85 | E28: 175 | F28: 65 | G28: 85 | H28: 418.2497368 | I28: 922.587087 | J28: 260 | K28: 150
C29: 2033 | D29: 90 | E29: 183.3333333 | F29: 65 | G29: 85 | H29: 424.7403214 | I29: 917.339778 | J29: 273.3333333 | K29: 150
C30: 2034 | D30: 95 | E30: 191.6666667 | F30: 65 | G30: 85 | H30: 454.9705688 | I30: 960.998998 | J30: 286.6666667 | K30: 150
C31: 2035 | D31: 100 | E31: 200 | F31: 65 | G31: 85 | H31: 470.2904908 | I31: 991.672794 | J31: 300 | K31: 150
C32: * Estimeret ud fra SIVAEL kørsler
A38: Decentrale eldrevne varmepumper
A39: Ejer | B39: Idriftsættelsesår | C39: Systemløsning | D39: Varmekilde | E39: Varmeydelse | F39: COP VP | G39: Elforbrug, MWh/h | H39: Landsdel
A40: Eksisterende varmepumper
A41: Vejen Varmeværk | B41: 2003 | E41: 0.7 | F41: 4.2 | G41: =E41/F41 -> 0.1666666667 | H41: Vestdanmark
A42: Frederikshavn forsyning | B42: 2009 | E42: 1 | F42: 3 | G42: =E42/F42 -> 0.3333333333 | H42: Vestdanmark
A43: Bjerringbro Varmeværk | B43: 2010 | E43: 0.8 | F43: 5.1 | G43: 0.1568627451 | H43: Vestdanmark
A44: Brande Varmeværk | B44: 2010 | E44: 0.65 | F44: 4.2 | G44: 0.1547619048 | H44: Vestdanmark
A45: Bjerringbro Varmeværk | B45: 2011 | E45: 0.5 | F45: 5.2 | G45: 0.09615384615 | H45: Vestdanmark
A46: Hanstholm Varmeværk | B46: 2011 | E46: 0.3 | F46: 5.8 | G46: 0.05172413793 | H46: Vestdanmark
A47: Vinderup | B47: 2011 | E47: 0.67 | F47: 5.2 | G47: 0.1288461538 | H47: Vestdanmark
A48: Bjerringbro Varmeværk | B48: 2012 | E48: 3.7 | F48: 4.8 | G48: 0.7708333333 | H48: Vestdanmark
A49: Brædstrup Fjernvarme | B49: 2012 | E49: 1.2 | F49: 3.2 | G49: 0.375 | H49: Vestdanmark
A50: Hundested | B50: 2012 | E50: 0.8 | F50: 4.8 | G50: 0.1666666667 | H50: Østdanmark
A51: Lading Fajstrup | B51: 2012 | E51: 0.13 | F51: 4.3 | G51: =E51/F51 -> 0.03023255814 | H51: Vestdanmark
A52: Marstal | B52: 2012 | E52: 1.5 | F52: 3.1 | G52: 0.4838709677 | H52: Vestdanmark
A53: Skjern Papirfabrik | B53: 2012 | E53: 3.9 | F53: 5 | G53: 0.78 | H53: Vestdanmark
A54: Vejen Varmeværk | B54: 2013 | E54: 1 | F54: 4.1 | G54: 0.243902439 | H54: Vestdanmark
A55: SUM | E55: =SUM(E41:E54) -> 16.85 | G55: =SUM(G41:G54) -> 3.938854753
A56: Projekterede varmepumper, forventes installeret i 2014-2017
A57: Ans | B57: 2015 | E57: 1.4 | F57: 3.2 | G57: =E57/F57 -> 0.4375 | H57: Vestdanmark
A58: Augustenborg | B58: 2016 | E58: 2 | F58: 3.5 | G58: 0.5714285714 | H58: Vestdanmark
A59: Broager | B59: 2017 | E59: 4 | F59: 3.5 | G59: 1.142857143 | H59: Vestdanmark
A60: Gram | B60: 2015 | E60: 0.7 | F60: 4 | G60: 0.175 | H60: Vestdanmark
A61: Løgumkloster | B61: 2015 | E61: 1.3 | F61: 4.5 | G61: 0.2888888889 | H61: Vestdanmark
A62: Præstø | B62: 2017 | E62: 3.7 | F62: 3.5 | G62: 1.057142857 | H62: Østdanmark
A63: Rye Kraftvarmeværk | B63: 2015 | E63: 2 | F63: 3.5 | G63: 0.5714285714 | H63: Vestdanmark
A64: Skejby | B64: 2017 | E64: 7 | F64: 3.5 | G64: 2 | H64: Vestdanmark
A65: Skårup | B65: 2015 | E65: 0.3 | F65: 5 | G65: 0.06 | H65: Vestdanmark
A66: SUM | E66: =SUM(E57:E65) -> 22.4 | G66: =SUM(G57:G65) -> 6.304246032

Sheet Elkedler
A1: Elkedler/elpatroner | G1: Indholdfortegnelse
B3: Primo året
B4: År | C4: 2014* | D4: 2015* | E4: 2016 | F4: 2017 | G4: 2018 | H4: 2019 | I4: 2020-2035
B5: MW. installeret | C5: 416.9 | D5: 496.9 | E5: 526.9 | F5: 526.9 | G5: 526.9 | H5: 526.9 | I5: 550
B6: * indikerer historiske værdier
C8: Primo 2014 | D8: Primo 2015 | E8: Kommer i 2015
B9: Vest
C10: 282.4 | D10: 362.4 | E10: 30
B11: Øst
C12: 134.5 | D12: 134.5
H21: År | I21: Elkelder
I22: GWh* | J22: MW | K22: Benyttelsestimer
H23: 2015 | I23: 169.8829627 | J23: 496.9 | K23: 341.8856161
H24: 2016 | I24: 249.6852385 | J24: 526.9 | K24: 473.8759509
H25: 2017 | I25: 334.37029 | J25: 526.9 | K25: 634.5991459
H26: 2018 | I26: 281.4281348 | J26: 526.9 | K26: 534.1205823
H27: 2019 | I27: 248.8150863 | J27: 526.9 | K27: 472.2244947
H28: 2020 | I28: 239.963391 | J28: 550 | K28: 436.2970745
H29: 2021 | I29: 238.4949275 | J29: 550 | K29: 433.627141
H30: 2022 | I30: 277.3480402 | J30: 550 | K30: 504.2691639
H31: 2023 | I31: 257.1290239 | J31: 550 | K31: 467.5073162
H32: 2024 | I32: 215.2556818 | J32: 550 | K32: 391.373967
H33: 2025 | I33: 244.2812963 | J33: 550 | K33: 444.1478115
H34: 2026 | I34: 297.1143735 | J34: 550 | K34: 540.2079517
H35: 2027 | I35: 298.3442839 | J35: 550 | K35: 542.4441525
H36: 2028 | I36: 254.4144042 | J36: 550 | K36: 462.571644
H37: 2029 | I37: 244.3683404 | J37: 550 | K37: 444.3060735
H38: 2030 | I38: 389.7229659 | J38: 550 | K38: 708.5872108
H39: 2031 | I39: 373.1418927 | J39: 550 | K39: 678.4398049
H40: 2032 | I40: 386.74623 | J40: 550 | K40: 703.1749636
H41: 2033 | I41: 372.3603766 | J41: 550 | K41: 677.0188665
H42: 2034 | I42: 394.4203168 | J42: 550 | K42: 717.1278487
H43: 2035 | I43: 395.431276 | J43: 550 | K43: 718.9659563
H44: * Estimeret ud fra SIVAEL kørsler

Sheet Vindkapacitet
A1: Vindkapacitet på land og hav | E1: Indholdsfortegnelse
B5: Primo år | C5: 2015 | D5: 2016 | E5: 2017 | F5: 2018 | G5: 2019 | H5: 2020 | I5: 2021 | J5: 2022 | K5: 2023 | L5: 2024
B6: Havmøller
B7: Horns Rev 1 | C7: 160 | D7: 160 | E7: 160 | F7: 160 | G7: 160 | H7: 160 | I7: 160 | J7: 160 | K7: 160 | L7: 160
B8: Rødsand 1 | C8: 165.6 | D8: 165.6 | E8: 165.6 | F8: 165.6 | G8: 165.6 | H8: 165.6 | I8: 165.6 | J8: 165.6 | K8: 165.6 | L8: 165.6
B9: Horns Rev 2 | C9: 209.3 | D9: 209.3 | E9: 209.3 | F9: 209.3 | G9: 209.3 | H9: 209.3 | I9: 209.3 | J9: 209.3 | K9: 209.3 | L9: 209.3
B10: Rødsand 2 | C10: 207 | D10: 207 | E10: 207 | F10: 207 | G10: 207 | H10: 207 | I10: 207 | J10: 207 | K10: 207 | L10: 207
B11: Anholt | C11: 399.6 | D11: 399.6 | E11: 399.6 | F11: 399.6 | G11: 399.6 | H11: 399.6 | I11: 399.6 | J11: 399.6 | K11: 399.6 | L11: 399.6
B12: Horns Rev 3 | C12: 0 | D12: 0 | E12: 0 | F12: 100 | G12: 250 | H12: 400 | I12: 400 | J12: 400 | K12: 400 | L12: 400
B13: Kriegers Flak | C13: 0 | D13: 0 | E13: 0 | F13: 0 | G13: 0 | H13: 200 | I13: 400 | J13: 600 | K13: 600 | L13: 600
B14: Horns Rev 4 | C14: 0 | D14: 0 | E14: 0 | F14: 0 | G14: 0 | H14: 0 | I14: 0 | J14: 0 | K14: 0 | L14: 0
B15: Jammerbugten | C15: 0 | D15: 0 | E15: 0 | F15: 0 | G15: 0 | H15: 0 | I15: 0 | J15: 0 | K15: 0 | L15: 0
B16: Kystnære møller
B17: Østdanmark | C17: 55.75 | D17: 55.75 | E17: 55.75 | F17: 55.75 | G17: 55.75 | H17: 255.75 | I17: 255.75 | J17: 255.75 | K17: 255.75 | L17: 255.75
B18: Vestdanmark | C18: 73.8 | D18: 73.8 | E18: 73.8 | F18: 73.8 | G18: 73.8 | H18: 273.8 | I18: 273.8 | J18: 273.8 | K18: 273.8 | L18: 273.8
B19: Landmøller
B20: Østdanmark
B21: Før 2008 | C21: 492.1 | D21: 482.1 | E21: 462.1 | F21: 429.0928571 | G21: 396.0857143 | H21: 363.0785714 | I21: 330.0714286 | J21: 297.0642857 | K21: 264.0571429 | L21: 231.05
B22: Mellem 2008 - 2013 | C22: 92.1 | D22: 92.1 | E22: 92.1 | F22: 92.1 | G22: 92.1 | H22: 92.1 | I22: 92.1 | J22: 92.1 | K22: 92.1 | L22: 92.1
B23: Mellem 2014 - 2019 | C23: 27.49 | D23: 101.89 | E23: 140.149 | F23: 183.1561429 | G23: 226.1632857 | H23: 269.1704286 | I23: 269.1704286 | J23: 269.1704286 | K23: 269.1704286 | L23: 269.1704286
B24: Fra 2020 og frem | C24: 0 | D24: 0 | E24: 0 | F24: 0 | G24: 0 | H24: 0 | I24: 43.00714286 | J24: 86.01428571 | K24: 129.0214286 | L24: 172.0285714
B25: Vestdanmark
B26: Før 2008 | C26: 1979.2 | D26: 1919.2 | E26: 1824.2 | F26: 1693.9 | G26: 1563.6 | H26: 1433.3 | I26: 1303 | J26: 1172.7 | K26: 1042.4 | L26: 912.1
B27: Mellem 2008 - 2013 | C27: 955.5 | D27: 955.5 | E27: 955.5 | F27: 955.5 | G27: 955.5 | H27: 955.5 | I27: 955.5 | J27: 955.5 | K27: 955.5 | L27: 955.5
B28: Mellem 2014 - 2019 | C28: 78.2 | D28: 219.4 | E28: 445.7905 | F28: 616.0905 | G28: 786.3905 | H28: 956.6905 | I28: 956.6905 | J28: 956.6905 | K28: 956.6905 | L28: 956.6905
B29: Fra 2020 og frem | C29: 0 | D29: 0 | E29: 0 | F29: 0 | G29: 0 | H29: 0 | I29: 170.3 | J29: 340.6 | K29: 510.9 | L29: 681.2
B30: Sum MW | C30: 4895.64 | D30: 5041.24 | E30: 5190.8895 | F30: 5340.8895 | G30: 5540.8895 | H30: 6340.8895 | I30: 6590.8895 | J30: 6840.8895 | K30: 6890.8895 | L30: 6940.8895
B31: Sum GWh | C31: 13227.628 | D31: 13761.5605 | E31: 14361.55463 | F31: 15154.85784 | G31: 16173.16105 | H31: 19745.21427 | I31: 20970.51355 | J31: 22323.81284 | K31: 22864.71213 | L31: 23240.01141
B32: % af klassisk forbrug | C32: 0.3972357018 | D32: 0.4120483623 | E32: 0.4279811806 | F32: 0.4494040799 | G32: 0.4770748474 | H32: 0.5797310483 | I32: 0.6111799089 | J32: 0.6447428992 | K32: 0.6563960305 | L32: 0.6641956151
B33: % af samlet forbrug | C33: 0.3864352929 | D33: 0.3992445059 | E33: 0.4125226158 | F33: 0.4302921151 | G33: 0.4548583191 | H33: 0.5501173471 | I33: 0.5765232408 | J33: 0.6033609605 | K33: 0.609963441 | L33: 0.6100077743
B35: Primo år | C35: 2025 | D35: 2026 | E35: 2027 | F35: 2028 | G35: 2029 | H35: 2030 | I35: 2031 | J35: 2032 | K35: 2033 | L35: 2034 | M35: 2035
B36: Havmøller
B37: Horns Rev 1 | C37: 160 | D37: 160 | E37: 160 | F37: 160 | G37: 160 | H37: 160 | I37: 160 | J37: 160 | K37: 160 | L37: 160 | M37: 160
B38: Rødsand 1 | C38: 165.6 | D38: 165.6 | E38: 165.6 | F38: 165.6 | G38: 165.6 | H38: 165.6 | I38: 165.6 | J38: 165.6 | K38: 165.6 | L38: 165.6 | M38: 165.6
B39: Horns Rev 2 | C39: 209.3 | D39: 209.3 | E39: 209.3 | F39: 209.3 | G39: 209.3 | H39: 209.3 | I39: 209.3 | J39: 209.3 | K39: 209.3 | L39: 209.3 | M39: 209.3
B40: Rødsand 2 | C40: 207 | D40: 207 | E40: 207 | F40: 207 | G40: 207 | H40: 207 | I40: 207 | J40: 207 | K40: 207 | L40: 207 | M40: 207
B41: Anholt | C41: 399.6 | D41: 399.6 | E41: 399.6 | F41: 399.6 | G41: 399.6 | H41: 399.6 | I41: 399.6 | J41: 399.6 | K41: 399.6 | L41: 399.6 | M41: 399.6
B42: Horns Rev 3 | C42: 400 | D42: 400 | E42: 400 | F42: 400 | G42: 400 | H42: 400 | I42: 400 | J42: 400 | K42: 400 | L42: 400 | M42: 400
B43: Kriegers Flak | C43: 600 | D43: 600 | E43: 600 | F43: 600 | G43: 600 | H43: 600 | I43: 600 | J43: 600 | K43: 600 | L43: 600 | M43: 600
B44: Horns Rev 4 | C44: 0 | D44: 200 | E44: 400 | F44: 400 | G44: 400 | H44: 400 | I44: 400 | J44: 400 | K44: 400 | L44: 400 | M44: 400
B45: Jammerbugten | C45: 0 | D45: 0 | E45: 0 | F45: 0 | G45: 200 | H45: 400 | I45: 400 | J45: 400 | K45: 400 | L45: 400 | M45: 400
B46: Kystnære møller
B47: Østdanmark | C47: 255.75 | D47: 255.75 | E47: 255.75 | F47: 255.75 | G47: 255.75 | H47: 255.75 | I47: 255.75 | J47: 255.75 | K47: 255.75 | L47: 255.75 | M47: 255.75
B48: Vestdanmark | C48: 273.8 | D48: 273.8 | E48: 273.8 | F48: 273.8 | G48: 273.8 | H48: 273.8 | I48: 273.8 | J48: 273.8 | K48: 273.8 | L48: 273.8 | M48: 273.8
B49: Landmøller
B50: Østdanmark
B51: Før 2008 | C51: 198.0428571 | D51: 165.0357143 | E51: 132.0285714 | F51: 99.02142857 | G51: 66.01428571 | H51: 33.00714286 | I51: 0 | J51: 0 | K51: 0 | L51: 0 | M51: 0
B52: Mellem 2008 - 2013 | C52: 92.1 | D52: 92.1 | E52: 92.1 | F52: 92.1 | G52: 92.1 | H52: 92.1 | I52: 92.1 | J52: 76.75 | K52: 61.4 | L52: 46.05 | M52: 30.7
B53: Mellem 2014 - 2019 | C53: 269.1704286 | D53: 269.1704286 | E53: 269.1704286 | F53: 269.1704286 | G53: 269.1704286 | H53: 269.1704286 | I53: 269.1704286 | J53: 269.1704286 | K53: 269.1704286 | L53: 269.1704286 | M53: 269.1704286
B54: Fra 2020 og frem | C54: 215.0357143 | D54: 258.0428571 | E54: 301.05 | F54: 344.0571429 | G54: 387.0642857 | H54: 430.0714286 | I54: 473.0785714 | J54: 494.5910714 | K54: 516.1035714 | L54: 537.6160714 | M54: 559.1285714
B55: Vestdanmark
B56: Før 2008 | C56: 781.8 | D56: 651.5 | E56: 521.2 | F56: 390.9 | G56: 260.6 | H56: 130.3 | I56: 0 | J56: 0 | K56: 0 | L56: 0 | M56: 0
B57: Mellem 2008 - 2013 | C57: 955.5 | D57: 955.5 | E57: 955.5 | F57: 955.5 | G57: 955.5 | H57: 955.5 | I57: 955.5 | J57: 796.25 | K57: 637 | L57: 477.75 | M57: 318.5
B58: Mellem 2014 - 2019 | C58: 956.6905 | D58: 956.6905 | E58: 956.6905 | F58: 956.6905 | G58: 956.6905 | H58: 956.6905 | I58: 956.6905 | J58: 956.6905 | K58: 956.6905 | L58: 956.6905 | M58: 956.6905
B59: Fra 2020 og frem | C59: 851.5 | D59: 1021.8 | E59: 1192.1 | F59: 1362.4 | G59: 1532.7 | H59: 1703 | I59: 1873.3 | J59: 2032.7375 | K59: 2192.175 | L59: 2351.6125 | M59: 2511.05
B60: Sum MW | C60: 6990.8895 | D60: 7240.8895 | E60: 7490.8895 | F60: 7540.8895 | G60: 7790.8895 | H60: 8040.8895 | I60: 8090.8895 | J60: 8097.2395 | K60: 8103.5895 | L60: 8109.9395 | M60: 8116.2895
B61: Sum GWh | C61: 23663.3107 | D61: 24978.60998 | E61: 26293.90927 | F61: 26693.56855 | G61: 28082.12284 | H61: 29480.22213 | I61: 29855.52141 | J61: 29944.31641 | K61: 30033.11141 | L61: 30130.33641 | M61: 30219.13141
B62: % af klassisk forbrug | C62: 0.6740738727 | D62: 0.7087324455 | E62: 0.7438170718 | F62: 0.753656493 | G62: 0.7916327293 | H62: 0.8282680433 | I62: 0.8381286874 | J62: 0.8398924289 | K62: 0.8430973309 | L62: 0.8468599264 | M62: 0.847857028
B63: % af samlet forbrug | C63: 0.6108088345 | D63: 0.6331496689 | E63: 0.6568787319 | F63: 0.661193797 | G63: 0.6910822087 | H63: 0.7158802978 | I63: 0.7205215846 | J63: 0.7176803035 | K63: 0.7168049172 | L63: 0.7148060466 | M63: 0.7114970946

Sheet Solceller
A1: Solceller | B1: Primo år | D1: Indholdsfortegnelse
A3: Fremskrivning
C5: 2014 | D5: 2015 | E5: 2016 | F5: 2017 | G5: 2018 | H5: 2019 | I5: 2020 | J5: 2021 | K5: 2022 | L5: 2023 | M5: 2024
B6: Kapacitet, MW | C6: 598.157 | D6: 608.405756 | E6: 654.7246048 | F6: 701.0434536 | G6: 747.3623024 | H6: 793.6811512 | I6: 840 | J6: 900 | K6: 960 | L6: 1020 | M6: 1080
B7: Produktion, GWh | C7: 561.695256 | D7: 608.405756 | E7: 612 | F7: 637.5 | G7: 663 | H7: 688.5 | I7: 714 | J7: 765 | K7: 816 | L7: 867 | M7: 918
C9: 2025 | D9: 2026 | E9: 2027 | F9: 2028 | G9: 2029 | H9: 2030 | I9: 2031 | J9: 2032 | K9: 2033 | L9: 2034 | M9: 2035 | N9: 2036
B10: Kapacitet, MW | C10: 1140 | D10: 1200 | E10: 1260 | F10: 1320 | G10: 1380 | H10: 1440 | I10: 1500 | J10: 1560 | K10: 1620 | L10: 1680 | M10: 1740 | N10: 1800
B11: Produktion, GWh | C11: 969 | D11: 1020 | E11: 1071 | F11: 1122 | G11: 1173 | H11: 1224 | I11: 1275 | J11: 1326 | K11: 1377 | L11: 1428 | M11: 1479 | N11: 1530
A14: Antagelser
B16: Benyttelsestid | C16: 1000 | D16: timer
D17: 2015 fremskrivning | F17: 2014 fremskrivning
C18: År | D18: Kapacitet | E18: Produktion | F18: Kapacitet | G18: Produktion
D19: MW | E19: GWh | F19: MW | G19: GWh
C20: 2013 | D20: 398.673856 | E20: 398.673856 | F20: 331 | G20: 281.35
C21: 2014 | D21: 561.695256 | E21: 561.695256 | F21: 560 | G21: 476
C22: 2015 | D22: 608.405756 | E22: 608.405756 | F22: 670 | G22: 569.5
C23: 2016 | D23: 654.7246048 | E23: 654.7246048 | F23: 720 | G23: 612
C24: 2017 | D24: 701.0434536 | E24: 701.0434536 | F24: 750 | G24: 637.5
C25: 2018 | D25: 747.3623024 | E25: 747.3623024 | F25: 780 | G25: 663
C26: 2019 | D26: 793.6811512 | E26: 793.6811512 | F26: 810 | G26: 688.5
C27: 2020 | D27: 840 | E27: 840 | F27: 840 | G27: 714
C28: 2021 | D28: 900 | E28: 900 | F28: 900 | G28: 765
C29: 2022 | D29: 960 | E29: 960 | F29: 960 | G29: 816
C30: 2023 | D30: 1020 | E30: 1020 | F30: 1020 | G30: 867
C31: 2024 | D31: 1080 | E31: 1080 | F31: 1080 | G31: 918
C32: 2025 | D32: 1140 | E32: 1140 | F32: 1140 | G32: 969
C33: 2026 | D33: 1200 | E33: 1200 | F33: 1200 | G33: 1020
C34: 2027 | D34: 1260 | E34: 1260 | F34: 1260 | G34: 1071
C35: 2028 | D35: 1320 | E35: 1320 | F35: 1320 | G35: 1122
C36: 2029 | D36: 1380 | E36: 1380 | F36: 1380 | G36: 1173
C37: 2030 | D37: 1440 | E37: 1440 | F37: 1440 | G37: 1224
C38: 2031 | D38: 1500 | E38: 1500 | F38: 1500 | G38: 1275
C39: 2032 | D39: 1560 | E39: 1560 | F39: 1560 | G39: 1326
C40: 2033 | D40: 1620 | E40: 1620 | F40: 1620 | G40: 1377
C41: 2034 | D41: 1680 | E41: 1680 | F41: 1680 | G41: 1428
C42: 2035 | D42: 1740 | E42: 1740 | F42: 1740 | G42: 1479
C43: 2036 | D43: 1800 | E43: 1800 | F43: 1800 | G43: 1530

Sheet Kraftværker, Øst
A1: Kraftværker, Østdanmark | B1: Kraftværker, Østdanmark | C1: Indholdsfortegnelse
A2: Interne tabeller
A3: Alle kapaciteter er afrundet til nærmeste hele 5 MW | B3: Alle kapaciteter er afrundet til nærmeste hele 5 MW
A4: Fremskrivning | B4: Fremskrivning
F5: VB = Varmebinding
B7: Anlæg | C7: El | D7: El | E7: I drift | F7: Bemærkning | G7: VB
C8: Maks | D8: Nominel
C9: MW | D9: MW | E9: År | G9: J/N
B10: Amagerværkets Blok 1 | C10: 70 | D10: 70 | E10: 2009 | F10: Modtryksværk. Fyrer med træpiller og olie. Kan også fyre med kul. | G10: ja
B11: Amagerværkets Blok 3 | C11: 265 | D11: 250 | E11: 1989 | F11: 15 MW overlastevne. Kul-/sværolie fyret. | G11: ja
B12: Asnæsværkets Blok 2 | C12: 140 | D12: 140 | E12: 1961 | F12: Kul-/sværolie fyret Kører ikke samtidig med blok 5. | G12: ja
B13: Avedøreværkets Blok 1 | C13: 265 | D13: 250 | E13: 1990 | F13: 15 MW overlastevne. Kul-/oliefyret. Forventes at kunne fyre med 50% træpiller fra Q3 2016. | G13: ja
B14: Avedøreværkets Blok 2 | C14: 545 | D14: 545 | E14: 2002 | F14: Gas/halm/kul/træ fyret. Kapacitet på hovedkedlen er 360 MW. | G14: ja
B15: H.C. Ørstedværkets Blok 7 | C15: 75 | D15: 75 | E15: 1985 | F15: Naturgasfyret Ombygget i 1994. | G15: ja
B16: H.C. Ørstedværkets Blok 8 | C16: 25 | D16: 25 | E16: 2004 | F16: Naturgasfyret. | G16: ja
B17: Kyndbyværkets Blok 21 | C17: 260 | D17: 260 | E17: 1974 | F17: Reserveanlæg. | G17: nej
B18: Kyndbyværkets Blok 22 | C18: 260 | D18: 260 | E18: 1976 | F18: Reserveanlæg. | G18: nej
B19: Kyndbyværkets Blok 41 | C19: 20 | D19: 20 | E19: 1974 | F19: Reserveanlæg. | G19: nej
B20: Kyndbyværkets Blok 51+52 | C20: 125 | D20: 125 | E20: 1973 | F20: Reserveanlæg. | G20: nej
B21: Masnedøværkets Blok 31 | C21: 70 | D21: 70 | E21: 1975 | F21: Reserveanlæg. | G21: nej
B22: I alt, centrale værker primo 2015 | C22: =+SUM(C10:C21) -> 2120 | D22: =+SUM(D10:D21) -> 2090
B23: Østkraft | C23: 90 | D23: 90 | G23: ja
B24: Decentrale værker Erhvervsværker Lokale værker inkl. regulerkraftanlæg | C24: 645 | D24: 645 | F24: Fra 2016 reduceres den samlede kapacitet af de decentrale kraftværker. Dette skyldes dels forventede ændringer i tilskudsordningen og dermed lukninger samt omlægninger til ren varmeproduktion.
B25: I alt, primo 2015 | C25: =+C24+C23+C22 -> 2855 | D25: =+D24+D23+D22 -> 2825
B27: Betinget driftklar
B28: Asnæsværkets Blok 5 | C28: 665 | D28: 640 | E28: 1981 | F28: Kul-/sværolie fyret Betinget driftklar med 8 ugers startvarsel. Backup for ASV2, hvorfor de ikke kører samtidig. | G28: ja
B30: Status konserveret
B31: H.C. Ørstedværkets Sekt. 2 (Blok1-4) | C31: 10 | D31: 10 | E31: 1954 | F31: Naturgasfyret Ombygget i 1994. Ikke driftsklar. | G31: ja
B32: Svanemølleværkets Blok 1-3 | C32: 10 | D32: 10 | E32: 1953 | F32: Naturgas/letolie fyret. Renoveret i 2007/2008. Status konserveret - ikke driftsklar. | G32: ja
B33: Svanemølleværkets Blok 7 | C33: 60 | D33: 60 | E33: 1995 | F33: Naturgas/letolie fyret. Status konserveret - ikke driftsklar. | G33: ja
B34: Stigsnæsværkets Blok 2 | C34: 265 | D34: 265 | E34: 1970 | F34: Kul-/sværolie fyret. Status konserveret - ikke driftsklar.

Sheet Kraftværker, Vest
A1: Kraftværker, Vestdanmark | C1: Indholdsfortegnelse
A2: Interne tabeller
A3: Alle kapaciteter er afrundet til nærmeste hele 5 MW
A4: Fremskrivning
F5: VB = Varmebinding
B7: Anlæg | C7: El | D7: El | E7: I drift | F7: Bemærkning | G7: VB
C8: Maks | D8: Nominel
C9: MW | D9: MW | E9: År | G9: J/N
B10: Fynsværkets Blok 7 | C10: 410 | D10: 380 | E10: 1991 | F10: 30 MW overlastevne Fyrer med stenkul. | G10: ja
B11: Fynsværkets Blok 8 | C11: 35 | D11: =C11 -> 35 | E11: 2009 | F11: Halmfyret. | G11: ja
B12: Nordjyllandsværkets Blok 3 | C12: 410 | D12: 380 | E12: 1998 | F12: 30 MW overlast. Fyrer med stenkul. | G12: ja
B13: Skærbækværkets Blok 3 | C13: 430 | D13: 390 | E13: 1997 | F13: Ca. 35-40 MW overlastevne. Naturgasfyret. | G13: ja
B14: Studstrupværkets Blok 3 | C14: 380 | D14: 360 | E14: 1984 | F14: Fyrer med stenkul Forventes at fyre med 100 % træpiller fra Q3 2016. Kører ikke samtidig med blok 4. Overlastevne 20 MW. | G14: ja
B15: Studstrupværkets Blok 5 | C15: 15 | D15: 15 | E15: 1986 | F15: Reserveanlæg. | G15: nej
B16: Esbjergværkets Blok 3 | C16: 400 | D16: 370 | E16: 1992 | F16: 30 MW overlastevne. Fyret med stenkul/olie. | G16: ja
B17: Herningværket | C17: 90 | D17: 90 | E17: 1982 | F17: Biomassefyret fra 2009. | G17: ja
B18: I alt, centrale værker primo 2015 | C18: =SUM(C10:C17) -> 2170 | D18: =SUM(D10:D17) -> 2020
B20: Decentrale værker Erhvervsværker Lokale værker inkl. regulerkraftanlæg | C20: 1845 | D20: =C20 -> 1845 | F20: Fra 2017 reduceres den samlede kapacitet af de decentrale kraftværker. Dette skyldes dels forventede ændringer i tilskudsordningen og dermed lukninger samt omlægninger til ren varmeproduktion. Randersværket på 52 MW er holdt uden for denne beregning.
B21: I alt, 2015 | C21: =+C20+C18 -> 4015 | D21: =+D20+D18 -> 3865
B23: Betinget driftklar
B24: Studstrupværket Blok 4 | C24: 380 | D24: 360 | E24: 1985 | F24: Brændsel: stenkul Efter 2015 får det status betinget driftsklar. Opstartstid bliver 3 mdr. Overlastevne 20 MW. | G24: ja
B26: Status konserveret
B27: Enstedværket Blok 3 | C27: 665 | D27: 665 | E27: 1979 | F27: Fyrer med stenkul. Heraf 40 MW biomasse. Status konserveret - ikke driftsklar. | G27: ja
B28: Nordjyllandsværkets Blok 2 | C28: 220 | D28: =C28 -> 220 | E28: 1977 | F28: Fyret med stenkul Status konserveret - ikke driftsklar | G28: ja

Sheet Udlandsforbindelser
A1: Udlandsforbindelser | B1: Indholdfortegnelse
A2: Første hele driftsår
A3: Udlandsforbindelser [GW] | B3: 2015 | D3: 2016 | F3: 2017 | H3: 2018 | J3: 2019 | L3: 2020 | N3: 2021
B4: Eksport | C4: Import | D4: Eksport | E4: Import | F4: Eksport | G4: Import | H4: Eksport | I4: Import | J4: Eksport | K4: Import | L4: Eksport | M4: Import | N4: Eksport | O4: Import
A5: Østdanmark - Sverige (Øresund) | B5: 1.7 | C5: 1.3 | D5: 1.7 | E5: 1.3 | F5: 1.7 | G5: 1.3 | H5: 1.7 | I5: 1.3 | J5: 1.7 | K5: 1.3 | L5: 1.7 | M5: 1.3 | N5: 1.7 | O5: 1.3
A6: Østdanmark - Tyskland (Kontek) | B6: 0.6 | C6: 0.6 | D6: 0.6 | E6: 0.6 | F6: 0.6 | G6: 0.6 | H6: 0.6 | I6: 0.6 | J6: 0.6 | K6: 0.6 | L6: 0.6 | M6: 0.6 | N6: 0.6 | O6: 0.6
A7: Østdanmark - Tyskland (Kriegers Flak) | B7: 0 | C7: 0 | D7: 0 | E7: 0 | F7: 0 | G7: 0 | H7: 0 | I7: 0 | J7: 0.4 | K7: 0.4 | L7: 0.4 | M7: 0.4 | N7: 0.4 | O7: 0.4
A8: Vestdanmark - Norge (Skagerrak) | B8: 1.7 | C8: 1.7 | D8: 1.7 | E8: 1.7 | F8: 1.7 | G8: 1.7 | H8: 1.7 | I8: 1.7 | J8: 1.7 | K8: 1.7 | L8: 1.7 | M8: 1.7 | N8: 1.7 | O8: 1.7
A9: Vestdanmark - Sverige (Konti-Skan) | B9: 0.74 | C9: 0.68 | D9: 0.74 | E9: 0.68 | F9: 0.74 | G9: 0.68 | H9: 0.74 | I9: 0.68 | J9: 0.74 | K9: 0.68 | L9: 0.74 | M9: 0.68 | N9: 0.74 | O9: 0.68
A10: Vestdanmark - Tyskland | B10: 1.64 | C10: 1.5 | D10: 1.64 | E10: 1.5 | F10: 1.64 | G10: 1.5 | H10: 1.64 | I10: 1.5 | J10: 1.64 | K10: 1.5 | L10: 1.64 | M10: 1.5 | N10: 2.5 | O10: 2.5
A11: Vestdanmark - Holland (COBRAcable) | B11: 0 | C11: 0 | D11: 0 | E11: 0 | F11: 0 | G11: 0 | H11: 0 | I11: 0 | J11: 0 | K11: 0 | L11: 0.7 | M11: 0.7 | N11: 0.7 | O11: 0.7
A12: Vestdanmark - Østdanmark | B12: 0.6 | C12: 0.6 | D12: 0.6 | E12: 0.6 | F12: 0.6 | G12: 0.6 | H12: 0.6 | I12: 0.6 | J12: 0.6 | K12: 0.6 | L12: 0.6 | M12: 0.6 | N12: 0.6 | O12: 0.6
A13: Vestdanmark - England (VikingLink) | B13: 0 | C13: 0 | D13: 0 | E13: 0 | F13: 0 | G13: 0 | H13: 0 | I13: 0 | J13: 0 | K13: 0 | L13: 0 | M13: 0 | N13: 0 | O13: 0
A15: Udlandsforbindelser [GW] | B15: 2022 | D15: 2023 | F15: 2024 | H15: 2025 | J15: 2030 | L15: 2035
B16: Eksport | C16: Import | D16: Eksport | E16: Import | F16: Eksport | G16: Import | H16: Eksport | I16: Import | J16: Eksport | K16: Import | L16: Eksport | M16: Import
A17: Østdanmark - Sverige (Øresund) | B17: 1.7 | C17: 1.3 | D17: 1.7 | E17: 1.3 | F17: 1.7 | G17: 1.3 | H17: 1.7 | I17: 1.3 | J17: 1.7 | K17: 1.3 | L17: 1.7 | M17: 1.3
A18: Østdanmark - Tyskland (Kontek) | B18: 0.6 | C18: 0.6 | D18: 0.6 | E18: 0.6 | F18: 0.6 | G18: 0.6 | H18: 0.6 | I18: 0.6 | J18: 0.6 | K18: 0.6 | L18: 0.6 | M18: 0.6
A19: Østdanmark - Tyskland (Kriegers Flak) | B19: 0.4 | C19: 0.4 | D19: 0.4 | E19: 0.4 | F19: 0.4 | G19: 0.4 | H19: 0.4 | I19: 0.4 | J19: 0.4 | K19: 0.4 | L19: 0.4 | M19: 0.4
A20: Vestdanmark - Norge (Skagerrak) | B20: 1.7 | C20: 1.7 | D20: 1.7 | E20: 1.7 | F20: 1.7 | G20: 1.7 | H20: 1.7 | I20: 1.7 | J20: 1.7 | K20: 1.7 | L20: 1.7 | M20: 1.7
A21: Vestdanmark - Sverige (Konti-Skan) | B21: 0.74 | C21: 0.68 | D21: 0.74 | E21: 0.68 | F21: 0.74 | G21: 0.68 | H21: 0.74 | I21: 0.68 | J21: 0.74 | K21: 0.68 | L21: 0.74 | M21: 0.68
A22: Vestdanmark - Tyskland | B22: 2.5 | C22: 2.5 | D22: 2.5 | E22: 2.5 | F22: 2.5 | G22: 2.5 | H22: 3 | I22: 3 | J22: 3 | K22: 3 | L22: 3 | M22: 3
A23: Vestdanmark - Holland (COBRAcable) | B23: 0.7 | C23: 0.7 | D23: 0.7 | E23: 0.7 | F23: 0.7 | G23: 0.7 | H23: 0.7 | I23: 0.7 | J23: 0.7 | K23: 0.7 | L23: 0.7 | M23: 0.7
A24: Vestdanmark - Østdanmark | B24: 0.6 | C24: 0.6 | D24: 0.6 | E24: 0.6 | F24: 0.6 | G24: 0.6 | H24: 0.6 | I24: 0.6 | J24: 0.6 | K24: 0.6 | L24: 0.6 | M24: 0.6
A25: Vestdanmark - England (VikingLink) | B25: 1.4 | C25: 1.4 | D25: 1.4 | E25: 1.4 | F25: 1.4 | G25: 1.4 | H25: 1.4 | I25: 1.4 | J25: 1.4 | K25: 1.4 | L25: 1.4 | M25: 1.4

Sheet Gasdata - forbrug og produktion
A1: Forbrug | B1: Indholdsfortegnelse
B6: Forbrug og eksport via gasinfrastruturen | J6: Produktion og import via gasinfrastruturen
B8: År | C8: Danmark | D8: Sverige | E8: Sverige + Danmark | F8: Kommerciel eksport til Tyskland | G8: Forbrug Danmark og Sverige samt eksport til Tyskland | J8: År | K8: Forventede leverancer fra Nordsøen til Danmark (Nybro) | L8: Opgraderet biogas | M8: Import fra Tyskland (Entry Ellund) | N8: Samlede leverancer til Danmark incl. opgraderet biogas
A10: [PJ] | B10: 2014 | C10: =C41 -> 0 | D10: =D41 -> 0 | E10: 0 | F10: 0 | G10: 0 | I10: [PJ] | J10: 2014 | K10: =K41 -> 0 | L10: =L41 -> 0 | M10: 0 | N10: 0
B11: 2015 | C11: =C42 -> 119.80676 | D11: 43.35824097 | E11: 163.165001 | F11: 79.19208 | G11: 242.357081 | J11: 2015 | K11: =K42 -> 163.758081 | L11: 1.28 | M11: 77.319 | N11: 242.357081
B12: 2016 | C12: =C43 -> 116.76688 | D12: 43.56 | E12: 160.32688 | F12: 89.0802 | G12: 249.40708 | J12: 2016 | K12: =K43 -> 135.4716 | L12: 1.42 | M12: 112.51548 | N12: 249.40708
B13: 2017 | C13: =C44 -> 113.4129488 | D13: 43.56 | E13: 156.9729488 | F13: 87.12 | G13: 244.0929488 | J13: 2017 | K13: =K44 -> 122.3134848 | L13: 1.58 | M13: 120.199464 | N13: 244.0929488
B14: 2018 | C14: =C45 -> 110.0390177 | D14: 43.56 | E14: 153.5990177 | F14: 87.12 | G14: 240.7190177 | J14: 2018 | K14: =K45 -> 118.7995537 | L14: 1.72 | M14: 120.199464 | N14: 240.7190177
B15: 2019 | C15: =C46 -> 107.5125436 | D15: 43.56 | E15: 151.0725436 | F15: 87.12 | G15: 238.1925436 | J15: 2019 | K15: =K46 -> 116.1330796 | L15: 1.86 | M15: 120.199464 | N15: 238.1925436
B16: 2020 | C16: =C47 -> 106.0619516 | D16: 43.56 | E16: 149.6219516 | F16: 87.12 | G16: 236.7419516 | J16: 2020 | K16: =K47 -> 114.5424876 | L16: 2 | M16: 120.199464 | N16: 236.7419516
B17: 2021 | C17: =C48 -> 103.407768 | D17: 43.56 | E17: 146.967768 | F17: 87.12 | G17: 234.087768 | J17: 2021 | K17: =K48 -> 111.808304 | L17: 2.08 | M17: 120.199464 | N17: 234.087768
B18: 2022 | C18: =C49 -> 99.72497863 | D18: 43.56 | E18: 143.2849786 | F18: 78.88716 | G18: 222.1721386 | J18: 2022 | K18: =K49 -> 99.81267463 | L18: 2.16 | M18: 120.199464 | N18: 222.1721386
B19: 2023 | C19: =C50 -> 97.35062815 | D19: 43.56 | E19: 140.9106282 | F19: 67.82292 | G19: 208.7335482 | J19: 2023 | K19: =K50 -> 86.29408415 | L19: 2.24 | M19: 120.199464 | N19: 208.7335482
B20: 2024 | C20: =C51 -> 94.59287272 | D20: 43.57074081 | E20: 138.1636135 | F20: 57.84768 | G20: 196.0112935 | J20: 2024 | K20: =K51 -> 73.49182953 | L20: 2.32 | M20: 120.199464 | N20: 196.0112935
B21: 2025 | C21: =C52 -> 92.19666359 | D21: 43.1350334 | E21: 135.331697 | F21: 61.24536 | G21: 196.577057 | J21: 2025 | K21: =K52 -> 73.97759298 | L21: 2.4 | M21: 120.199464 | N21: 196.577057
B22: 2026 | C22: =C53 -> 89.08617634 | D22: 42.70368306 | E22: 131.7898594 | F22: 53.361 | G22: 185.1508594 | J22: 2026 | K22: =K53 -> 62.3113954 | L22: 2.64 | M22: 120.199464 | N22: 185.1508594
B23: 2027 | C23: =C54 -> 85.97568909 | D23: 42.27664623 | E23: 128.2523353 | F23: 43.16796 | G23: 171.4202953 | J23: 2027 | K23: =K54 -> 48.34083132 | L23: 2.88 | M23: 120.199464 | N23: 171.4202953
B24: 2028 | C24: =C55 -> 82.86520184 | D24: 41.85387977 | E24: 124.7190816 | F24: 34.23816 | G24: 158.9572416 | J24: 2028 | K24: =K55 -> 35.63777761 | L24: 3.12 | M24: 120.199464 | N24: 158.9572416
B25: 2029 | C25: =C56 -> 79.7547146 | D25: 41.43534097 | E25: 121.1900556 | F25: 26.3538 | G25: 147.5438556 | J25: 2029 | K25: =K56 -> 23.98439157 | L25: 3.36 | M25: 120.199464 | N25: 147.5438556
B26: 2030 | C26: =C57 -> 76.64422735 | D26: 41.02098756 | E26: 117.6652149 | F26: 24.56784 | G26: 142.2330549 | J26: 2030 | K26: =K57 -> 18.43359091 | L26: 3.6 | M26: 120.199464 | N26: 142.2330549
B27: 2031 | C27: =C58 -> 73.5337401 | D27: 40.61077769 | E27: 114.1445178 | F27: 26.44092 | G27: 140.5854378 | J27: 2031 | K27: =K58 -> 16.54597379 | L27: 3.84 | M27: 120.199464 | N27: 140.5854378
B28: 2032 | C28: =C59 -> 70.42325285 | D28: 40.20466991 | E28: 110.6279228 | F28: 20.64744 | G28: 131.2753628 | J28: 2032 | K28: =K59 -> 6.875077947 | L28: 4.08 | M28: 120.3202848 | N28: 131.2753628
B29: 2033 | C29: =C60 -> 67.31276561 | D29: 39.80262321 | E29: 107.1153888 | F29: 0 | G29: 107.1153888 | J29: 2033 | K29: =K60 -> 0 | L29: 4.32 | M29: 102.8046505 | N29: 107.1153888
B30: 2034 | C30: =C61 -> 64.20227836 | D30: 39.40459698 | E30: 103.6068753 | F30: 0 | G30: 103.6068753 | J30: 2034 | K30: =K61 -> 0 | L30: 4.56 | M30: 99.0478951 | N30: 103.6068753
B31: 2035 | C31: =C62 -> 61.09179111 | D31: 39.01055101 | E31: 100.1023421 | F31: 0 | G31: 100.1023421 | J31: 2035 | K31: =K62 -> 0 | L31: 4.8 | M31: 95.28069068 | N31: 100.1023421
A39: I PJ | B39: År | C39: Danmark | D39: Sverige | E39: Sverige + Danmark | F39: Kommerciel eksport til Tyskland | G39: Forbrug Danmark og Sverige samt eksport til Tyskland | I39: I PJ | J39: År | K39: Forventede leverancer fra Nordsøen til Danmark (Nybro) | L39: Opgraderet biogas | M39: Import fra Tyskland (Entry Ellund) | N39: Samlede leverancer til Danmark incl. opgraderet biogas
B41: 2014 | J41: 2014
B42: 2015 | C42: 119.80676 | D42: 43.35824097 | E42: 163.165001 | F42: 79.19208 | G42: 242.357081 | J42: 2015 | K42: 163.758081 | L42: 1.28 | M42: 77.319 | N42: 242.357081
B43: 2016 | C43: 116.76688 | D43: 43.56 | E43: 160.32688 | F43: 89.0802 | G43: 249.40708 | J43: 2016 | K43: 135.4716 | L43: 1.42 | M43: 112.51548 | N43: 249.40708
B44: 2017 | C44: 113.4129488 | D44: 43.56 | E44: 156.9729488 | F44: 87.12 | G44: 244.0929488 | J44: 2017 | K44: 122.3134848 | L44: 1.58 | M44: 120.199464 | N44: 244.0929488
B45: 2018 | C45: 110.0390177 | D45: 43.56 | E45: 153.5990177 | F45: 87.12 | G45: 240.7190177 | J45: 2018 | K45: 118.7995537 | L45: 1.72 | M45: 120.199464 | N45: 240.7190177
B46: 2019 | C46: 107.5125436 | D46: 43.56 | E46: 151.0725436 | F46: 87.12 | G46: 238.1925436 | J46: 2019 | K46: 116.1330796 | L46: 1.86 | M46: 120.199464 | N46: 238.1925436
B47: 2020 | C47: 106.0619516 | D47: 43.56 | E47: 149.6219516 | F47: 87.12 | G47: 236.7419516 | J47: 2020 | K47: 114.5424876 | L47: 2 | M47: 120.199464 | N47: 236.7419516
B48: 2021 | C48: 103.407768 | D48: 43.56 | E48: 146.967768 | F48: 87.12 | G48: 234.087768 | J48: 2021 | K48: 111.808304 | L48: 2.08 | M48: 120.199464 | N48: 234.087768
B49: 2022 | C49: 99.72497863 | D49: 43.56 | E49: 143.2849786 | F49: 78.88716 | G49: 222.1721386 | J49: 2022 | K49: 99.81267463 | L49: 2.16 | M49: 120.199464 | N49: 222.1721386
B50: 2023 | C50: 97.35062815 | D50: 43.56 | E50: 140.9106282 | F50: 67.82292 | G50: 208.7335482 | J50: 2023 | K50: 86.29408415 | L50: 2.24 | M50: 120.199464 | N50: 208.7335482
B51: 2024 | C51: 94.59287272 | D51: 43.57074081 | E51: 138.1636135 | F51: 57.84768 | G51: 196.0112935 | J51: 2024 | K51: 73.49182953 | L51: 2.32 | M51: 120.199464 | N51: 196.0112935
B52: 2025 | C52: 92.19666359 | D52: 43.1350334 | E52: 135.331697 | F52: 61.24536 | G52: 196.577057 | J52: 2025 | K52: 73.97759298 | L52: 2.4 | M52: 120.199464 | N52: 196.577057
B53: 2026 | C53: 89.08617634 | D53: 42.70368306 | E53: 131.7898594 | F53: 53.361 | G53: 185.1508594 | J53: 2026 | K53: 62.3113954 | L53: 2.64 | M53: 120.199464 | N53: 185.1508594
B54: 2027 | C54: 85.97568909 | D54: 42.27664623 | E54: 128.2523353 | F54: 43.16796 | G54: 171.4202953 | J54: 2027 | K54: 48.34083132 | L54: 2.88 | M54: 120.199464 | N54: 171.4202953
B55: 2028 | C55: 82.86520184 | D55: 41.85387977 | E55: 124.7190816 | F55: 34.23816 | G55: 158.9572416 | J55: 2028 | K55: 35.63777761 | L55: 3.12 | M55: 120.199464 | N55: 158.9572416
B56: 2029 | C56: 79.7547146 | D56: 41.43534097 | E56: 121.1900556 | F56: 26.3538 | G56: 147.5438556 | J56: 2029 | K56: 23.98439157 | L56: 3.36 | M56: 120.199464 | N56: 147.5438556
B57: 2030 | C57: 76.64422735 | D57: 41.02098756 | E57: 117.6652149 | F57: 24.56784 | G57: 142.2330549 | J57: 2030 | K57: 18.43359091 | L57: 3.6 | M57: 120.199464 | N57: 142.2330549
B58: 2031 | C58: 73.5337401 | D58: 40.61077769 | E58: 114.1445178 | F58: 26.44092 | G58: 140.5854378 | J58: 2031 | K58: 16.54597379 | L58: 3.84 | M58: 120.199464 | N58: 140.5854378
B59: 2032 | C59: 70.42325285 | D59: 40.20466991 | E59: 110.6279228 | F59: 20.64744 | G59: 131.2753628 | J59: 2032 | K59: 6.875077947 | L59: 4.08 | M59: 120.3202848 | N59: 131.2753628
B60: 2033 | C60: 67.31276561 | D60: 39.80262321 | E60: 107.1153888 | F60: 0 | G60: 107.1153888 | J60: 2033 | K60: 0 | L60: 4.32 | M60: 102.8046505 | N60: 107.1153888
B61: 2034 | C61: 64.20227836 | D61: 39.40459698 | E61: 103.6068753 | F61: 0 | G61: 103.6068753 | J61: 2034 | K61: 0 | L61: 4.56 | M61: 99.0478951 | N61: 103.6068753
B62: 2035 | C62: 61.09179111 | D62: 39.01055101 | E62: 100.1023421 | F62: 0 | G62: 100.1023421 | J62: 2035 | K62: 0 | L62: 4.8 | M62: 95.28069068 | N62: 100.1023421
Y93: 2041 | Z93: 8.989352345 | AB93: 0 | AC93: 426.2950359 | AD93: 8.989352345
Y94: 2042 | Z94: 8.000523587 | AB94: 0 | AC94: 383.6655323 | AD94: 8.000523587

Sheet Gasdata forbindelser
A1: Udlandsforbindelser | C1: Indholdfortegnelse

Sheet Fjernvarmeforbruget
A1: Fjernvarmeforbruget | D1: Indholdsfortegnelse
A4: TJ | C4: 2014 | D4: 2015 | E4: 2016 | F4: 2017 | G4: 2018 | H4: 2019 | I4: 2020 | J4: 2021 | K4: 2022 | L4: 2023 | M4: 2024 | N4: 2025 | O4: 2026 | P4: 2027 | Q4: 2028 | R4: 2029 | S4: 2030 | T4: 2031 | U4: 2032 | V4: 2033 | W4: 2034 | X4: 2035
B5: Husholdning | C5: 68133.48344 | D5: 67940.36266 | E5: 67738.59559 | F5: 67596.5982 | G5: 67503.95286 | H5: 67426.70306 | I5: 67355.95321 | J5: 67545.32639 | K5: 67718.88497 | L5: 67881.14648 | M5: 68034.00032 | N5: 68179.81746 | O5: 68475.62944 | P5: 68771.32597 | Q5: 69066.25189 | R5: 69358.54752 | S5: 69647.00628 | T5: 69934.99334 | U5: 70222.93536 | V5: 70509.57696 | W5: 70793.79085 | X5: 71073.68732
B6: Erhverv | C6: 36753.02916 | D6: 37445.7246 | E6: 38010.2703 | F6: 38537.28377 | G6: 39026.17826 | H6: 39478.66833 | I6: 39819.37173 | J6: 40219.27395 | K6: 40232.07741 | L6: 40151.22248 | M6: 40008.75125 | N6: 39821.67256 | O6: 39591.73952 | P6: 39369.1176 | Q6: 39097.57106 | R6: 38822.57188 | S6: 38623.77148 | T6: 38335.20179 | U6: 38051.92677 | V6: 37714.87176 | W6: 37376.07051 | X6: 37154.95978
B7: Tab | C7: 26221.62815 | D7: 26346.52182 | E7: 26437.21647 | F7: 26533.47049 | G7: 26632.53278 | H7: 26726.34285 | I7: 26793.83123 | J7: 26941.15009 | K7: 26987.74059 | L7: 27008.09224 | M7: 27010.68789 | N7: 27000.3725 | O7: 27016.84224 | P7: 27035.11089 | Q7: 27040.95574 | R7: 27045.27985 | S7: 27067.69444 | T7: 27067.54878 | U7: 27068.71553 | V7: 27056.11218 | W7: 27042.46534 | X7: 27057.16177
B8: Kilde: Basisfremskrivning 2014, Energistyrelsen
C12: 2014 | D12: 2015 | E12: 2016 | F12: 2017 | G12: 2018 | H12: 2019 | I12: 2020 | J12: 2021 | K12: 2022 | L12: 2023 | M12: 2024 | N12: 2025 | O12: 2026 | P12: 2027 | Q12: 2028 | R12: 2029 | S12: 2030 | T12: 2031 | U12: 2032 | V12: 2033 | W12: 2034 | X12: 2035
A13: MWh | B13: Husholdning | C13: 18925.96762 | D13: 18872.32296 | E13: 18816.27655 | F13: 18776.83283 | G13: 18751.09802 | H13: 18729.63974 | I13: 18709.987 | J13: 18762.59067 | K13: 18810.80138 | L13: 18855.87402 | M13: 18898.33342 | N13: 18938.83818 | O13: 19021.00818 | P13: 19103.1461 | Q13: 19185.06997 | R13: 19266.2632 | S13: 19346.39063 | T13: 19426.38704 | U13: 19506.37093 | V13: 19585.9936 | W13: 19664.9419 | X13: 19742.69092
B14: Erhverv | C14: 10209.17477 | D14: 10401.59017 | E14: 10558.40842 | F14: 10704.80105 | G14: 10840.60507 | H14: 10966.29676 | I14: 11060.93659 | J14: 11172.02054 | K14: 11175.57706 | L14: 11153.11736 | M14: 11113.54201 | N14: 11061.57571 | O14: 10997.70542 | P14: 10935.866 | Q14: 10860.43641 | R14: 10784.04774 | S14: 10728.82541 | T14: 10648.66716 | U14: 10569.97966 | V14: 10476.35327 | W14: 10382.24181 | X14: 10320.82216
B15: Tab | C15: 7283.785597 | D15: 7318.478282 | E15: 7343.671242 | F15: 7370.408471 | G15: 7397.925772 | H15: 7423.984124 | I15: 7442.730898 | J15: 7483.652801 | K15: 7496.59461 | L15: 7502.247845 | M15: 7502.968859 | N15: 7500.103473 | O15: 7504.6784 | P15: 7509.753025 | Q15: 7511.376594 | R15: 7512.577736 | S15: 7518.804011 | T15: 7518.763551 | U15: 7519.087648 | V15: 7515.586716 | W15: 7511.795927 | X15: 7515.878271
